{"text_format":"3","workbook":"xlsx","n_sheets":2,"sheets":["Mulai","Kalender Keluarga"],"not_rendered":{"images":2,"defined_names":15},"read":"whole","date_system":"1900"}

{"sheet":"Mulai","index":0,"n_rows":7,"n_cols":2,"rows_kept":7}
[null,"TENTANG TEMPLAT INI"]
[null,"Memantau tanggal penting dan memasukkan catatan dalam Kalender Keluarga ini."]
[null,"Mengustomisasi judul kalender dan memilih tahun."]
[null,"Setiap bulan kalender diperbarui secara otomatis."]
[null,"Catatan: "]
[null,"Instruksi tambahan telah tersedia di kolom A dalam lembar kerja KALENDER KELUARGA. Teks ini sengaja disembunyikan. Untuk menghapus teks, pilih kolom A, lalu pilih HAPUS. Untuk memperlihatkan teks, pilih kolom A, lalu ubah warna font."]
[null,"Untuk mempelajari selengkapnya tentang tabel, tekan SHIFT kemudian F10 di dalam tabel, pilih opsi TABEL, lalu pilih TEKS ALTERNATIF"]

{"sheet":"Kalender Keluarga","index":1,"n_rows":49,"n_cols":38,"rows_kept":49,"merged":[[2,3,2,29],[2,30,2,34],[2,37,2,39],[5,3,5,6],[5,7,5,16],[5,20,5,34],[6,3,6,6],[6,7,6,16],[6,20,6,34],[7,3,7,6],[7,7,7,16],[7,20,7,34],[8,3,8,6],[8,7,8,16],[8,20,8,34],[9,3,9,6],[9,7,9,16],[9,20,9,34],[10,3,10,6],[10,7,10,16],[10,20,10,34],[11,3,11,6],[11,7,11,16],[11,20,11,34],[12,3,12,6],[12,7,12,16],[12,20,12,34],[13,3,13,6],[13,7,13,16],[13,20,13,34],[14,3,14,6],[14,7,14,16],[14,20,14,34],[15,3,15,6],[15,7,15,16],[15,20,15,34],[16,3,16,6],[16,7,16,16],[16,20,16,34],[17,3,17,6],[17,7,17,16],[17,20,17,34],[18,3,18,6],[18,7,18,16],[18,20,18,34],[19,3,19,6],[19,7,19,16],[19,20,19,34],[20,3,20,4],[21,3,21,4],[23,2,23,8],[23,11,23,17],[23,20,23,26],[23,29,23,35],[32,2,32,8],[32,11,32,17],[32,20,32,26],[32,29,32,35],[41,2,41,8],[41,11,41,17],[41,20,41,26],[41,29,41,35]]}
["Buat Kalender Keluarga untuk tahun tertentu di lembar kerja ini. Instruksi bermanfaat tentang cara menggunakan lembar kerja ada di sel-sel dalam kolom ini. Instruksi berikutnya ada di sel A3."]
[]
["Kustomisasi judul kalender di sel D3 dan masukkan tahun di sel AE3. Tips ada di sel AL3. Instruksi berikutnya ada di sel A5.",null,null,"Kalender Keluarga Sumarto",{"$nulls":26},{"$f":"YEAR(TODAY())","v":2019},{"$nulls":6},"Tips: Gunakan pemutar untuk mengubah tahun kalender ada di sel ini."]
[]
["Label Tanggal Penting ada di sel D5 dan label Catatan di sel U5. Masukkan tanggal penting di sel D6 hingga D20, acara atau peringatan khusus di sel H6 hingga H20, dan Catatan di sel U6 hingga U20. Instruksi berikutnya ada di sel A23.",null,null,"Tanggal Penting",{"$nulls":16},"Catatan"]
[{"$nulls":3},{"$f":"DATE(YEAR(TODAY()),1,1)","v":"2019-01-01"},{"$nulls":3},"Tahun Baru"]
[{"$nulls":3},{"$f":"DATE(YEAR(TODAY()),3,25)","v":"2019-03-25"},{"$nulls":3},"Ulang Tahun Jodi"]
{"$rows_empty":15}
["Kalender tahunan ada di sel C24 hingga AJ49, kalender Januari di sel C25 hingga I31, kalender Februari di sel L25 hingga R31, kalender Maret di sel U25 hingga AA31, dan kalender April di sel AD25 hingga AJ31."]
["Nama-nama bulan ada di baris ini. Label Januari ada di sel C24, label Februari di sel L24, Maret di sel L24, dan April di sel U24.",null,{"$f":"DATE(TahunKalender,1,1)","v":"2019-01-01"},{"$nulls":8},{"$f":"DATE(TahunKalender,2,1)","v":"2019-02-01"},{"$nulls":8},{"$f":"DATE(TahunKalender,3,1)","v":"2019-03-01"},{"$nulls":8},{"$f":"DATE(TahunKalender,4,1)","v":"2019-04-01"}]
["Nama-nama hari ada di baris ini. Nama hari bulan Januari ada di sel C25 hingga I25, hari-hari bulan Februari di sel L25 hingga R25, hari-hari bulan Maret di sel U25 hingga AA25, dan hari-hari bulan April di sel AD25 hingga AJ25.",null,"Sn","Sl","Rb","Km","Jm","Sb","Mn",null,null,"Sn","Sl","Rb","Km","Jm","Sb","Mn",null,null,"Sn","Sl","Rb","Km","Jm","Sb","Mn",null,null,"Sn","Sl","Rb","Km","Jm","Sb","Mn"]
["Tanggal otomatis diperbarui di baris ini. Tanggal Januari ada di sel sebelah kanan, sel C26 hingga I31, tanggal Februari di sel L26 hingga R31, tanggal Maret di sel U26 hingga AA31, dan tanggal April di sel AD26 hingga AJ31. Instruksi berikutnya ada di sel A32.",null,{"$f":"IF(DAY(JanMin1)=1,\"\",IF(AND(YEAR(JanMin1+1)=TahunKalender,MONTH(JanMin1+1)=1),JanMin1+1,\"\"))","v":""},{"$f":"IF(DAY(JanMin1)=1,\"\",IF(AND(YEAR(JanMin1+2)=TahunKalender,MONTH(JanMin1+2)=1),JanMin1+2,\"\"))","v":"2019-01-01"},{"$f":"IF(DAY(JanMin1)=1,\"\",IF(AND(YEAR(JanMin1+3)=TahunKalender,MONTH(JanMin1+3)=1),JanMin1+3,\"\"))","v":"2019-01-02"},{"$f":"IF(DAY(JanMin1)=1,\"\",IF(AND(YEAR(JanMin1+4)=TahunKalender,MONTH(JanMin1+4)=1),JanMin1+4,\"\"))","v":"2019-01-03"},{"$f":"IF(DAY(JanMin1)=1,\"\",IF(AND(YEAR(JanMin1+5)=TahunKalender,MONTH(JanMin1+5)=1),JanMin1+5,\"\"))","v":"2019-01-04"},{"$f":"IF(DAY(JanMin1)=1,\"\",IF(AND(YEAR(JanMin1+6)=TahunKalender,MONTH(JanMin1+6)=1),JanMin1+6,\"\"))","v":"2019-01-05"},{"$f":"IF(DAY(JanMin1)=1,IF(AND(YEAR(JanMin1)=TahunKalender,MONTH(JanMin1)=1),JanMin1,\"\"),IF(AND(YEAR(JanMin1+7)=TahunKalender,MONTH(JanMin1+7)=1),JanMin1+7,\"\"))","v":"2019-01-06"},null,null,{"$f":"IF(DAY(FebMin1)=1,\"\",IF(AND(YEAR(FebMin1+1)=TahunKalender,MONTH(FebMin1+1)=2),FebMin1+1,\"\"))","v":""},{"$f":"IF(DAY(FebMin1)=1,\"\",IF(AND(YEAR(FebMin1+2)=TahunKalender,MONTH(FebMin1+2)=2),FebMin1+2,\"\"))","v":""},{"$f":"IF(DAY(FebMin1)=1,\"\",IF(AND(YEAR(FebMin1+3)=TahunKalender,MONTH(FebMin1+3)=2),FebMin1+3,\"\"))","v":""},{"$f":"IF(DAY(FebMin1)=1,\"\",IF(AND(YEAR(FebMin1+4)=TahunKalender,MONTH(FebMin1+4)=2),FebMin1+4,\"\"))","v":""},{"$f":"IF(DAY(FebMin1)=1,\"\",IF(AND(YEAR(FebMin1+5)=TahunKalender,MONTH(FebMin1+5)=2),FebMin1+5,\"\"))","v":"2019-02-01"},{"$f":"IF(DAY(FebMin1)=1,\"\",IF(AND(YEAR(FebMin1+6)=TahunKalender,MONTH(FebMin1+6)=2),FebMin1+6,\"\"))","v":"2019-02-02"},{"$f":"IF(DAY(FebMin1)=1,IF(AND(YEAR(FebMin1)=TahunKalender,MONTH(FebMin1)=2),FebMin1,\"\"),IF(AND(YEAR(FebMin1+7)=TahunKalender,MONTH(FebMin1+7)=2),FebMin1+7,\"\"))","v":"2019-02-03"},null,null,{"$f":"IF(DAY(MarMin1)=1,\"\",IF(AND(YEAR(MarMin1+1)=TahunKalender,MONTH(MarMin1+1)=3),MarMin1+1,\"\"))","v":""},{"$f":"IF(DAY(MarMin1)=1,\"\",IF(AND(YEAR(MarMin1+2)=TahunKalender,MONTH(MarMin1+2)=3),MarMin1+2,\"\"))","v":""},{"$f":"IF(DAY(MarMin1)=1,\"\",IF(AND(YEAR(MarMin1+3)=TahunKalender,MONTH(MarMin1+3)=3),MarMin1+3,\"\"))","v":""},{"$f":"IF(DAY(MarMin1)=1,\"\",IF(AND(YEAR(MarMin1+4)=TahunKalender,MONTH(MarMin1+4)=3),MarMin1+4,\"\"))","v":""},{"$f":"IF(DAY(MarMin1)=1,\"\",IF(AND(YEAR(MarMin1+5)=TahunKalender,MONTH(MarMin1+5)=3),MarMin1+5,\"\"))","v":"2019-03-01"},{"$f":"IF(DAY(MarMin1)=1,\"\",IF(AND(YEAR(MarMin1+6)=TahunKalender,MONTH(MarMin1+6)=3),MarMin1+6,\"\"))","v":"2019-03-02"},{"$f":"IF(DAY(MarMin1)=1,IF(AND(YEAR(MarMin1)=TahunKalender,MONTH(MarMin1)=3),MarMin1,\"\"),IF(AND(YEAR(MarMin1+7)=TahunKalender,MONTH(MarMin1+7)=3),MarMin1+7,\"\"))","v":"2019-03-03"},null,null,{"$f":"IF(DAY(AprMin1)=1,\"\",IF(AND(YEAR(AprMin1+1)=TahunKalender,MONTH(AprMin1+1)=4),AprMin1+1,\"\"))","v":"2019-04-01"},{"$f":"IF(DAY(AprMin1)=1,\"\",IF(AND(YEAR(AprMin1+2)=TahunKalender,MONTH(AprMin1+2)=4),AprMin1+2,\"\"))","v":"2019-04-02"},{"$f":"IF(DAY(AprMin1)=1,\"\",IF(AND(YEAR(AprMin1+3)=TahunKalender,MONTH(AprMin1+3)=4),AprMin1+3,\"\"))","v":"2019-04-03"},{"$f":"IF(DAY(AprMin1)=1,\"\",IF(AND(YEAR(AprMin1+4)=TahunKalender,MONTH(AprMin1+4)=4),AprMin1+4,\"\"))","v":"2019-04-04"},{"$f":"IF(DAY(AprMin1)=1,\"\",IF(AND(YEAR(AprMin1+5)=TahunKalender,MONTH(AprMin1+5)=4),AprMin1+5,\"\"))","v":"2019-04-05"},{"$f":"IF(DAY(AprMin1)=1,\"\",IF(AND(YEAR(AprMin1+6)=TahunKalender,MONTH(AprMin1+6)=4),AprMin1+6,\"\"))","v":"2019-04-06"},{"$f":"IF(DAY(AprMin1)=1,IF(AND(YEAR(AprMin1)=TahunKalender,MONTH(AprMin1)=4),AprMin1,\"\"),IF(AND(YEAR(AprMin1+7)=TahunKalender,MONTH(AprMin1+7)=4),AprMin1+7,\"\"))","v":"2019-04-07"}]
[null,null,{"$f":"IF(DAY(JanMin1)=1,IF(AND(YEAR(JanMin1+1)=TahunKalender,MONTH(JanMin1+1)=1),JanMin1+1,\"\"),IF(AND(YEAR(JanMin1+8)=TahunKalender,MONTH(JanMin1+8)=1),JanMin1+8,\"\"))","v":"2019-01-07"},{"$f":"IF(DAY(JanMin1)=1,IF(AND(YEAR(JanMin1+2)=TahunKalender,MONTH(JanMin1+2)=1),JanMin1+2,\"\"),IF(AND(YEAR(JanMin1+9)=TahunKalender,MONTH(JanMin1+9)=1),JanMin1+9,\"\"))","v":"2019-01-08"},{"$f":"IF(DAY(JanMin1)=1,IF(AND(YEAR(JanMin1+3)=TahunKalender,MONTH(JanMin1+3)=1),JanMin1+3,\"\"),IF(AND(YEAR(JanMin1+10)=TahunKalender,MONTH(JanMin1+10)=1),JanMin1+10,\"\"))","v":"2019-01-09"},{"$f":"IF(DAY(JanMin1)=1,IF(AND(YEAR(JanMin1+4)=TahunKalender,MONTH(JanMin1+4)=1),JanMin1+4,\"\"),IF(AND(YEAR(JanMin1+11)=TahunKalender,MONTH(JanMin1+11)=1),JanMin1+11,\"\"))","v":"2019-01-10"},{"$f":"IF(DAY(JanMin1)=1,IF(AND(YEAR(JanMin1+5)=TahunKalender,MONTH(JanMin1+5)=1),JanMin1+5,\"\"),IF(AND(YEAR(JanMin1+12)=TahunKalender,MONTH(JanMin1+12)=1),JanMin1+12,\"\"))","v":"2019-01-11"},{"$f":"IF(DAY(JanMin1)=1,IF(AND(YEAR(JanMin1+6)=TahunKalender,MONTH(JanMin1+6)=1),JanMin1+6,\"\"),IF(AND(YEAR(JanMin1+13)=TahunKalender,MONTH(JanMin1+13)=1),JanMin1+13,\"\"))","v":"2019-01-12"},{"$f":"IF(DAY(JanMin1)=1,IF(AND(YEAR(JanMin1+7)=TahunKalender,MONTH(JanMin1+7)=1),JanMin1+7,\"\"),IF(AND(YEAR(JanMin1+14)=TahunKalender,MONTH(JanMin1+14)=1),JanMin1+14,\"\"))","v":"2019-01-13"},null,null,{"$f":"IF(DAY(FebMin1)=1,IF(AND(YEAR(FebMin1+1)=TahunKalender,MONTH(FebMin1+1)=2),FebMin1+1,\"\"),IF(AND(YEAR(FebMin1+8)=TahunKalender,MONTH(FebMin1+8)=2),FebMin1+8,\"\"))","v":"2019-02-04"},{"$f":"IF(DAY(FebMin1)=1,IF(AND(YEAR(FebMin1+2)=TahunKalender,MONTH(FebMin1+2)=2),FebMin1+2,\"\"),IF(AND(YEAR(FebMin1+9)=TahunKalender,MONTH(FebMin1+9)=2),FebMin1+9,\"\"))","v":"2019-02-05"},{"$f":"IF(DAY(FebMin1)=1,IF(AND(YEAR(FebMin1+3)=TahunKalender,MONTH(FebMin1+3)=2),FebMin1+3,\"\"),IF(AND(YEAR(FebMin1+10)=TahunKalender,MONTH(FebMin1+10)=2),FebMin1+10,\"\"))","v":"2019-02-06"},{"$f":"IF(DAY(FebMin1)=1,IF(AND(YEAR(FebMin1+4)=TahunKalender,MONTH(FebMin1+4)=2),FebMin1+4,\"\"),IF(AND(YEAR(FebMin1+11)=TahunKalender,MONTH(FebMin1+11)=2),FebMin1+11,\"\"))","v":"2019-02-07"},{"$f":"IF(DAY(FebMin1)=1,IF(AND(YEAR(FebMin1+5)=TahunKalender,MONTH(FebMin1+5)=2),FebMin1+5,\"\"),IF(AND(YEAR(FebMin1+12)=TahunKalender,MONTH(FebMin1+12)=2),FebMin1+12,\"\"))","v":"2019-02-08"},{"$f":"IF(DAY(FebMin1)=1,IF(AND(YEAR(FebMin1+6)=TahunKalender,MONTH(FebMin1+6)=2),FebMin1+6,\"\"),IF(AND(YEAR(FebMin1+13)=TahunKalender,MONTH(FebMin1+13)=2),FebMin1+13,\"\"))","v":"2019-02-09"},{"$f":"IF(DAY(FebMin1)=1,IF(AND(YEAR(FebMin1+7)=TahunKalender,MONTH(FebMin1+7)=2),FebMin1+7,\"\"),IF(AND(YEAR(FebMin1+14)=TahunKalender,MONTH(FebMin1+14)=2),FebMin1+14,\"\"))","v":"2019-02-10"},null,null,{"$f":"IF(DAY(MarMin1)=1,IF(AND(YEAR(MarMin1+1)=TahunKalender,MONTH(MarMin1+1)=3),MarMin1+1,\"\"),IF(AND(YEAR(MarMin1+8)=TahunKalender,MONTH(MarMin1+8)=3),MarMin1+8,\"\"))","v":"2019-03-04"},{"$f":"IF(DAY(MarMin1)=1,IF(AND(YEAR(MarMin1+2)=TahunKalender,MONTH(MarMin1+2)=3),MarMin1+2,\"\"),IF(AND(YEAR(MarMin1+9)=TahunKalender,MONTH(MarMin1+9)=3),MarMin1+9,\"\"))","v":"2019-03-05"},{"$f":"IF(DAY(MarMin1)=1,IF(AND(YEAR(MarMin1+3)=TahunKalender,MONTH(MarMin1+3)=3),MarMin1+3,\"\"),IF(AND(YEAR(MarMin1+10)=TahunKalender,MONTH(MarMin1+10)=3),MarMin1+10,\"\"))","v":"2019-03-06"},{"$f":"IF(DAY(MarMin1)=1,IF(AND(YEAR(MarMin1+4)=TahunKalender,MONTH(MarMin1+4)=3),MarMin1+4,\"\"),IF(AND(YEAR(MarMin1+11)=TahunKalender,MONTH(MarMin1+11)=3),MarMin1+11,\"\"))","v":"2019-03-07"},{"$f":"IF(DAY(MarMin1)=1,IF(AND(YEAR(MarMin1+5)=TahunKalender,MONTH(MarMin1+5)=3),MarMin1+5,\"\"),IF(AND(YEAR(MarMin1+12)=TahunKalender,MONTH(MarMin1+12)=3),MarMin1+12,\"\"))","v":"2019-03-08"},{"$f":"IF(DAY(MarMin1)=1,IF(AND(YEAR(MarMin1+6)=TahunKalender,MONTH(MarMin1+6)=3),MarMin1+6,\"\"),IF(AND(YEAR(MarMin1+13)=TahunKalender,MONTH(MarMin1+13)=3),MarMin1+13,\"\"))","v":"2019-03-09"},{"$f":"IF(DAY(MarMin1)=1,IF(AND(YEAR(MarMin1+7)=TahunKalender,MONTH(MarMin1+7)=3),MarMin1+7,\"\"),IF(AND(YEAR(MarMin1+14)=TahunKalender,MONTH(MarMin1+14)=3),MarMin1+14,\"\"))","v":"2019-03-10"},null,null,{"$f":"IF(DAY(AprMin1)=1,IF(AND(YEAR(AprMin1+1)=TahunKalender,MONTH(AprMin1+1)=4),AprMin1+1,\"\"),IF(AND(YEAR(AprMin1+8)=TahunKalender,MONTH(AprMin1+8)=4),AprMin1+8,\"\"))","v":"2019-04-08"},{"$f":"IF(DAY(AprMin1)=1,IF(AND(YEAR(AprMin1+2)=TahunKalender,MONTH(AprMin1+2)=4),AprMin1+2,\"\"),IF(AND(YEAR(AprMin1+9)=TahunKalender,MONTH(AprMin1+9)=4),AprMin1+9,\"\"))","v":"2019-04-09"},{"$f":"IF(DAY(AprMin1)=1,IF(AND(YEAR(AprMin1+3)=TahunKalender,MONTH(AprMin1+3)=4),AprMin1+3,\"\"),IF(AND(YEAR(AprMin1+10)=TahunKalender,MONTH(AprMin1+10)=4),AprMin1+10,\"\"))","v":"2019-04-10"},{"$f":"IF(DAY(AprMin1)=1,IF(AND(YEAR(AprMin1+4)=TahunKalender,MONTH(AprMin1+4)=4),AprMin1+4,\"\"),IF(AND(YEAR(AprMin1+11)=TahunKalender,MONTH(AprMin1+11)=4),AprMin1+11,\"\"))","v":"2019-04-11"},{"$f":"IF(DAY(AprMin1)=1,IF(AND(YEAR(AprMin1+5)=TahunKalender,MONTH(AprMin1+5)=4),AprMin1+5,\"\"),IF(AND(YEAR(AprMin1+12)=TahunKalender,MONTH(AprMin1+12)=4),AprMin1+12,\"\"))","v":"2019-04-12"},{"$f":"IF(DAY(AprMin1)=1,IF(AND(YEAR(AprMin1+6)=TahunKalender,MONTH(AprMin1+6)=4),AprMin1+6,\"\"),IF(AND(YEAR(AprMin1+13)=TahunKalender,MONTH(AprMin1+13)=4),AprMin1+13,\"\"))","v":"2019-04-13"},{"$f":"IF(DAY(AprMin1)=1,IF(AND(YEAR(AprMin1+7)=TahunKalender,MONTH(AprMin1+7)=4),AprMin1+7,\"\"),IF(AND(YEAR(AprMin1+14)=TahunKalender,MONTH(AprMin1+14)=4),AprMin1+14,\"\"))","v":"2019-04-14"}]
[null,null,{"$f":"IF(DAY(JanMin1)=1,IF(AND(YEAR(JanMin1+8)=TahunKalender,MONTH(JanMin1+8)=1),JanMin1+8,\"\"),IF(AND(YEAR(JanMin1+15)=TahunKalender,MONTH(JanMin1+15)=1),JanMin1+15,\"\"))","v":"2019-01-14"},{"$f":"IF(DAY(JanMin1)=1,IF(AND(YEAR(JanMin1+9)=TahunKalender,MONTH(JanMin1+9)=1),JanMin1+9,\"\"),IF(AND(YEAR(JanMin1+16)=TahunKalender,MONTH(JanMin1+16)=1),JanMin1+16,\"\"))","v":"2019-01-15"},{"$f":"IF(DAY(JanMin1)=1,IF(AND(YEAR(JanMin1+10)=TahunKalender,MONTH(JanMin1+10)=1),JanMin1+10,\"\"),IF(AND(YEAR(JanMin1+17)=TahunKalender,MONTH(JanMin1+17)=1),JanMin1+17,\"\"))","v":"2019-01-16"},{"$f":"IF(DAY(JanMin1)=1,IF(AND(YEAR(JanMin1+11)=TahunKalender,MONTH(JanMin1+11)=1),JanMin1+11,\"\"),IF(AND(YEAR(JanMin1+18)=TahunKalender,MONTH(JanMin1+18)=1),JanMin1+18,\"\"))","v":"2019-01-17"},{"$f":"IF(DAY(JanMin1)=1,IF(AND(YEAR(JanMin1+12)=TahunKalender,MONTH(JanMin1+12)=1),JanMin1+12,\"\"),IF(AND(YEAR(JanMin1+19)=TahunKalender,MONTH(JanMin1+19)=1),JanMin1+19,\"\"))","v":"2019-01-18"},{"$f":"IF(DAY(JanMin1)=1,IF(AND(YEAR(JanMin1+13)=TahunKalender,MONTH(JanMin1+13)=1),JanMin1+13,\"\"),IF(AND(YEAR(JanMin1+20)=TahunKalender,MONTH(JanMin1+20)=1),JanMin1+20,\"\"))","v":"2019-01-19"},{"$f":"IF(DAY(JanMin1)=1,IF(AND(YEAR(JanMin1+14)=TahunKalender,MONTH(JanMin1+14)=1),JanMin1+14,\"\"),IF(AND(YEAR(JanMin1+21)=TahunKalender,MONTH(JanMin1+21)=1),JanMin1+21,\"\"))","v":"2019-01-20"},null,null,{"$f":"IF(DAY(FebMin1)=1,IF(AND(YEAR(FebMin1+8)=TahunKalender,MONTH(FebMin1+8)=2),FebMin1+8,\"\"),IF(AND(YEAR(FebMin1+15)=TahunKalender,MONTH(FebMin1+15)=2),FebMin1+15,\"\"))","v":"2019-02-11"},{"$f":"IF(DAY(FebMin1)=1,IF(AND(YEAR(FebMin1+9)=TahunKalender,MONTH(FebMin1+9)=2),FebMin1+9,\"\"),IF(AND(YEAR(FebMin1+16)=TahunKalender,MONTH(FebMin1+16)=2),FebMin1+16,\"\"))","v":"2019-02-12"},{"$f":"IF(DAY(FebMin1)=1,IF(AND(YEAR(FebMin1+10)=TahunKalender,MONTH(FebMin1+10)=2),FebMin1+10,\"\"),IF(AND(YEAR(FebMin1+17)=TahunKalender,MONTH(FebMin1+17)=2),FebMin1+17,\"\"))","v":"2019-02-13"},{"$f":"IF(DAY(FebMin1)=1,IF(AND(YEAR(FebMin1+11)=TahunKalender,MONTH(FebMin1+11)=2),FebMin1+11,\"\"),IF(AND(YEAR(FebMin1+18)=TahunKalender,MONTH(FebMin1+18)=2),FebMin1+18,\"\"))","v":"2019-02-14"},{"$f":"IF(DAY(FebMin1)=1,IF(AND(YEAR(FebMin1+12)=TahunKalender,MONTH(FebMin1+12)=2),FebMin1+12,\"\"),IF(AND(YEAR(FebMin1+19)=TahunKalender,MONTH(FebMin1+19)=2),FebMin1+19,\"\"))","v":"2019-02-15"},{"$f":"IF(DAY(FebMin1)=1,IF(AND(YEAR(FebMin1+13)=TahunKalender,MONTH(FebMin1+13)=2),FebMin1+13,\"\"),IF(AND(YEAR(FebMin1+20)=TahunKalender,MONTH(FebMin1+20)=2),FebMin1+20,\"\"))","v":"2019-02-16"},{"$f":"IF(DAY(FebMin1)=1,IF(AND(YEAR(FebMin1+14)=TahunKalender,MONTH(FebMin1+14)=2),FebMin1+14,\"\"),IF(AND(YEAR(FebMin1+21)=TahunKalender,MONTH(FebMin1+21)=2),FebMin1+21,\"\"))","v":"2019-02-17"},null,null,{"$f":"IF(DAY(MarMin1)=1,IF(AND(YEAR(MarMin1+8)=TahunKalender,MONTH(MarMin1+8)=3),MarMin1+8,\"\"),IF(AND(YEAR(MarMin1+15)=TahunKalender,MONTH(MarMin1+15)=3),MarMin1+15,\"\"))","v":"2019-03-11"},{"$f":"IF(DAY(MarMin1)=1,IF(AND(YEAR(MarMin1+9)=TahunKalender,MONTH(MarMin1+9)=3),MarMin1+9,\"\"),IF(AND(YEAR(MarMin1+16)=TahunKalender,MONTH(MarMin1+16)=3),MarMin1+16,\"\"))","v":"2019-03-12"},{"$f":"IF(DAY(MarMin1)=1,IF(AND(YEAR(MarMin1+10)=TahunKalender,MONTH(MarMin1+10)=3),MarMin1+10,\"\"),IF(AND(YEAR(MarMin1+17)=TahunKalender,MONTH(MarMin1+17)=3),MarMin1+17,\"\"))","v":"2019-03-13"},{"$f":"IF(DAY(MarMin1)=1,IF(AND(YEAR(MarMin1+11)=TahunKalender,MONTH(MarMin1+11)=3),MarMin1+11,\"\"),IF(AND(YEAR(MarMin1+18)=TahunKalender,MONTH(MarMin1+18)=3),MarMin1+18,\"\"))","v":"2019-03-14"},{"$f":"IF(DAY(MarMin1)=1,IF(AND(YEAR(MarMin1+12)=TahunKalender,MONTH(MarMin1+12)=3),MarMin1+12,\"\"),IF(AND(YEAR(MarMin1+19)=TahunKalender,MONTH(MarMin1+19)=3),MarMin1+19,\"\"))","v":"2019-03-15"},{"$f":"IF(DAY(MarMin1)=1,IF(AND(YEAR(MarMin1+13)=TahunKalender,MONTH(MarMin1+13)=3),MarMin1+13,\"\"),IF(AND(YEAR(MarMin1+20)=TahunKalender,MONTH(MarMin1+20)=3),MarMin1+20,\"\"))","v":"2019-03-16"},{"$f":"IF(DAY(MarMin1)=1,IF(AND(YEAR(MarMin1+14)=TahunKalender,MONTH(MarMin1+14)=3),MarMin1+14,\"\"),IF(AND(YEAR(MarMin1+21)=TahunKalender,MONTH(MarMin1+21)=3),MarMin1+21,\"\"))","v":"2019-03-17"},null,null,{"$f":"IF(DAY(AprMin1)=1,IF(AND(YEAR(AprMin1+8)=TahunKalender,MONTH(AprMin1+8)=4),AprMin1+8,\"\"),IF(AND(YEAR(AprMin1+15)=TahunKalender,MONTH(AprMin1+15)=4),AprMin1+15,\"\"))","v":"2019-04-15"},{"$f":"IF(DAY(AprMin1)=1,IF(AND(YEAR(AprMin1+9)=TahunKalender,MONTH(AprMin1+9)=4),AprMin1+9,\"\"),IF(AND(YEAR(AprMin1+16)=TahunKalender,MONTH(AprMin1+16)=4),AprMin1+16,\"\"))","v":"2019-04-16"},{"$f":"IF(DAY(AprMin1)=1,IF(AND(YEAR(AprMin1+10)=TahunKalender,MONTH(AprMin1+10)=4),AprMin1+10,\"\"),IF(AND(YEAR(AprMin1+17)=TahunKalender,MONTH(AprMin1+17)=4),AprMin1+17,\"\"))","v":"2019-04-17"},{"$f":"IF(DAY(AprMin1)=1,IF(AND(YEAR(AprMin1+11)=TahunKalender,MONTH(AprMin1+11)=4),AprMin1+11,\"\"),IF(AND(YEAR(AprMin1+18)=TahunKalender,MONTH(AprMin1+18)=4),AprMin1+18,\"\"))","v":"2019-04-18"},{"$f":"IF(DAY(AprMin1)=1,IF(AND(YEAR(AprMin1+12)=TahunKalender,MONTH(AprMin1+12)=4),AprMin1+12,\"\"),IF(AND(YEAR(AprMin1+19)=TahunKalender,MONTH(AprMin1+19)=4),AprMin1+19,\"\"))","v":"2019-04-19"},{"$f":"IF(DAY(AprMin1)=1,IF(AND(YEAR(AprMin1+13)=TahunKalender,MONTH(AprMin1+13)=4),AprMin1+13,\"\"),IF(AND(YEAR(AprMin1+20)=TahunKalender,MONTH(AprMin1+20)=4),AprMin1+20,\"\"))","v":"2019-04-20"},{"$f":"IF(DAY(AprMin1)=1,IF(AND(YEAR(AprMin1+14)=TahunKalender,MONTH(AprMin1+14)=4),AprMin1+14,\"\"),IF(AND(YEAR(AprMin1+21)=TahunKalender,MONTH(AprMin1+21)=4),AprMin1+21,\"\"))","v":"2019-04-21"}]
[null,null,{"$f":"IF(DAY(JanMin1)=1,IF(AND(YEAR(JanMin1+15)=TahunKalender,MONTH(JanMin1+15)=1),JanMin1+15,\"\"),IF(AND(YEAR(JanMin1+22)=TahunKalender,MONTH(JanMin1+22)=1),JanMin1+22,\"\"))","v":"2019-01-21"},{"$f":"IF(DAY(JanMin1)=1,IF(AND(YEAR(JanMin1+16)=TahunKalender,MONTH(JanMin1+16)=1),JanMin1+16,\"\"),IF(AND(YEAR(JanMin1+23)=TahunKalender,MONTH(JanMin1+23)=1),JanMin1+23,\"\"))","v":"2019-01-22"},{"$f":"IF(DAY(JanMin1)=1,IF(AND(YEAR(JanMin1+17)=TahunKalender,MONTH(JanMin1+17)=1),JanMin1+17,\"\"),IF(AND(YEAR(JanMin1+24)=TahunKalender,MONTH(JanMin1+24)=1),JanMin1+24,\"\"))","v":"2019-01-23"},{"$f":"IF(DAY(JanMin1)=1,IF(AND(YEAR(JanMin1+18)=TahunKalender,MONTH(JanMin1+18)=1),JanMin1+18,\"\"),IF(AND(YEAR(JanMin1+25)=TahunKalender,MONTH(JanMin1+25)=1),JanMin1+25,\"\"))","v":"2019-01-24"},{"$f":"IF(DAY(JanMin1)=1,IF(AND(YEAR(JanMin1+19)=TahunKalender,MONTH(JanMin1+19)=1),JanMin1+19,\"\"),IF(AND(YEAR(JanMin1+26)=TahunKalender,MONTH(JanMin1+26)=1),JanMin1+26,\"\"))","v":"2019-01-25"},{"$f":"IF(DAY(JanMin1)=1,IF(AND(YEAR(JanMin1+20)=TahunKalender,MONTH(JanMin1+20)=1),JanMin1+20,\"\"),IF(AND(YEAR(JanMin1+27)=TahunKalender,MONTH(JanMin1+27)=1),JanMin1+27,\"\"))","v":"2019-01-26"},{"$f":"IF(DAY(JanMin1)=1,IF(AND(YEAR(JanMin1+21)=TahunKalender,MONTH(JanMin1+21)=1),JanMin1+21,\"\"),IF(AND(YEAR(JanMin1+28)=TahunKalender,MONTH(JanMin1+28)=1),JanMin1+28,\"\"))","v":"2019-01-27"},null,null,{"$f":"IF(DAY(FebMin1)=1,IF(AND(YEAR(FebMin1+15)=TahunKalender,MONTH(FebMin1+15)=2),FebMin1+15,\"\"),IF(AND(YEAR(FebMin1+22)=TahunKalender,MONTH(FebMin1+22)=2),FebMin1+22,\"\"))","v":"2019-02-18"},{"$f":"IF(DAY(FebMin1)=1,IF(AND(YEAR(FebMin1+16)=TahunKalender,MONTH(FebMin1+16)=2),FebMin1+16,\"\"),IF(AND(YEAR(FebMin1+23)=TahunKalender,MONTH(FebMin1+23)=2),FebMin1+23,\"\"))","v":"2019-02-19"},{"$f":"IF(DAY(FebMin1)=1,IF(AND(YEAR(FebMin1+17)=TahunKalender,MONTH(FebMin1+17)=2),FebMin1+17,\"\"),IF(AND(YEAR(FebMin1+24)=TahunKalender,MONTH(FebMin1+24)=2),FebMin1+24,\"\"))","v":"2019-02-20"},{"$f":"IF(DAY(FebMin1)=1,IF(AND(YEAR(FebMin1+18)=TahunKalender,MONTH(FebMin1+18)=2),FebMin1+18,\"\"),IF(AND(YEAR(FebMin1+25)=TahunKalender,MONTH(FebMin1+25)=2),FebMin1+25,\"\"))","v":"2019-02-21"},{"$f":"IF(DAY(FebMin1)=1,IF(AND(YEAR(FebMin1+19)=TahunKalender,MONTH(FebMin1+19)=2),FebMin1+19,\"\"),IF(AND(YEAR(FebMin1+26)=TahunKalender,MONTH(FebMin1+26)=2),FebMin1+26,\"\"))","v":"2019-02-22"},{"$f":"IF(DAY(FebMin1)=1,IF(AND(YEAR(FebMin1+20)=TahunKalender,MONTH(FebMin1+20)=2),FebMin1+20,\"\"),IF(AND(YEAR(FebMin1+27)=TahunKalender,MONTH(FebMin1+27)=2),FebMin1+27,\"\"))","v":"2019-02-23"},{"$f":"IF(DAY(FebMin1)=1,IF(AND(YEAR(FebMin1+21)=TahunKalender,MONTH(FebMin1+21)=2),FebMin1+21,\"\"),IF(AND(YEAR(FebMin1+28)=TahunKalender,MONTH(FebMin1+28)=2),FebMin1+28,\"\"))","v":"2019-02-24"},null,null,{"$f":"IF(DAY(MarMin1)=1,IF(AND(YEAR(MarMin1+15)=TahunKalender,MONTH(MarMin1+15)=3),MarMin1+15,\"\"),IF(AND(YEAR(MarMin1+22)=TahunKalender,MONTH(MarMin1+22)=3),MarMin1+22,\"\"))","v":"2019-03-18"},{"$f":"IF(DAY(MarMin1)=1,IF(AND(YEAR(MarMin1+16)=TahunKalender,MONTH(MarMin1+16)=3),MarMin1+16,\"\"),IF(AND(YEAR(MarMin1+23)=TahunKalender,MONTH(MarMin1+23)=3),MarMin1+23,\"\"))","v":"2019-03-19"},{"$f":"IF(DAY(MarMin1)=1,IF(AND(YEAR(MarMin1+17)=TahunKalender,MONTH(MarMin1+17)=3),MarMin1+17,\"\"),IF(AND(YEAR(MarMin1+24)=TahunKalender,MONTH(MarMin1+24)=3),MarMin1+24,\"\"))","v":"2019-03-20"},{"$f":"IF(DAY(MarMin1)=1,IF(AND(YEAR(MarMin1+18)=TahunKalender,MONTH(MarMin1+18)=3),MarMin1+18,\"\"),IF(AND(YEAR(MarMin1+25)=TahunKalender,MONTH(MarMin1+25)=3),MarMin1+25,\"\"))","v":"2019-03-21"},{"$f":"IF(DAY(MarMin1)=1,IF(AND(YEAR(MarMin1+19)=TahunKalender,MONTH(MarMin1+19)=3),MarMin1+19,\"\"),IF(AND(YEAR(MarMin1+26)=TahunKalender,MONTH(MarMin1+26)=3),MarMin1+26,\"\"))","v":"2019-03-22"},{"$f":"IF(DAY(MarMin1)=1,IF(AND(YEAR(MarMin1+20)=TahunKalender,MONTH(MarMin1+20)=3),MarMin1+20,\"\"),IF(AND(YEAR(MarMin1+27)=TahunKalender,MONTH(MarMin1+27)=3),MarMin1+27,\"\"))","v":"2019-03-23"},{"$f":"IF(DAY(MarMin1)=1,IF(AND(YEAR(MarMin1+21)=TahunKalender,MONTH(MarMin1+21)=3),MarMin1+21,\"\"),IF(AND(YEAR(MarMin1+28)=TahunKalender,MONTH(MarMin1+28)=3),MarMin1+28,\"\"))","v":"2019-03-24"},null,null,{"$f":"IF(DAY(AprMin1)=1,IF(AND(YEAR(AprMin1+15)=TahunKalender,MONTH(AprMin1+15)=4),AprMin1+15,\"\"),IF(AND(YEAR(AprMin1+22)=TahunKalender,MONTH(AprMin1+22)=4),AprMin1+22,\"\"))","v":"2019-04-22"},{"$f":"IF(DAY(AprMin1)=1,IF(AND(YEAR(AprMin1+16)=TahunKalender,MONTH(AprMin1+16)=4),AprMin1+16,\"\"),IF(AND(YEAR(AprMin1+23)=TahunKalender,MONTH(AprMin1+23)=4),AprMin1+23,\"\"))","v":"2019-04-23"},{"$f":"IF(DAY(AprMin1)=1,IF(AND(YEAR(AprMin1+17)=TahunKalender,MONTH(AprMin1+17)=4),AprMin1+17,\"\"),IF(AND(YEAR(AprMin1+24)=TahunKalender,MONTH(AprMin1+24)=4),AprMin1+24,\"\"))","v":"2019-04-24"},{"$f":"IF(DAY(AprMin1)=1,IF(AND(YEAR(AprMin1+18)=TahunKalender,MONTH(AprMin1+18)=4),AprMin1+18,\"\"),IF(AND(YEAR(AprMin1+25)=TahunKalender,MONTH(AprMin1+25)=4),AprMin1+25,\"\"))","v":"2019-04-25"},{"$f":"IF(DAY(AprMin1)=1,IF(AND(YEAR(AprMin1+19)=TahunKalender,MONTH(AprMin1+19)=4),AprMin1+19,\"\"),IF(AND(YEAR(AprMin1+26)=TahunKalender,MONTH(AprMin1+26)=4),AprMin1+26,\"\"))","v":"2019-04-26"},{"$f":"IF(DAY(AprMin1)=1,IF(AND(YEAR(AprMin1+20)=TahunKalender,MONTH(AprMin1+20)=4),AprMin1+20,\"\"),IF(AND(YEAR(AprMin1+27)=TahunKalender,MONTH(AprMin1+27)=4),AprMin1+27,\"\"))","v":"2019-04-27"},{"$f":"IF(DAY(AprMin1)=1,IF(AND(YEAR(AprMin1+21)=TahunKalender,MONTH(AprMin1+21)=4),AprMin1+21,\"\"),IF(AND(YEAR(AprMin1+28)=TahunKalender,MONTH(AprMin1+28)=4),AprMin1+28,\"\"))","v":"2019-04-28"}]
[null,null,{"$f":"IF(DAY(JanMin1)=1,IF(AND(YEAR(JanMin1+22)=TahunKalender,MONTH(JanMin1+22)=1),JanMin1+22,\"\"),IF(AND(YEAR(JanMin1+29)=TahunKalender,MONTH(JanMin1+29)=1),JanMin1+29,\"\"))","v":"2019-01-28"},{"$f":"IF(DAY(JanMin1)=1,IF(AND(YEAR(JanMin1+23)=TahunKalender,MONTH(JanMin1+23)=1),JanMin1+23,\"\"),IF(AND(YEAR(JanMin1+30)=TahunKalender,MONTH(JanMin1+30)=1),JanMin1+30,\"\"))","v":"2019-01-29"},{"$f":"IF(DAY(JanMin1)=1,IF(AND(YEAR(JanMin1+24)=TahunKalender,MONTH(JanMin1+24)=1),JanMin1+24,\"\"),IF(AND(YEAR(JanMin1+31)=TahunKalender,MONTH(JanMin1+31)=1),JanMin1+31,\"\"))","v":"2019-01-30"},{"$f":"IF(DAY(JanMin1)=1,IF(AND(YEAR(JanMin1+25)=TahunKalender,MONTH(JanMin1+25)=1),JanMin1+25,\"\"),IF(AND(YEAR(JanMin1+32)=TahunKalender,MONTH(JanMin1+32)=1),JanMin1+32,\"\"))","v":"2019-01-31"},{"$f":"IF(DAY(JanMin1)=1,IF(AND(YEAR(JanMin1+26)=TahunKalender,MONTH(JanMin1+26)=1),JanMin1+26,\"\"),IF(AND(YEAR(JanMin1+33)=TahunKalender,MONTH(JanMin1+33)=1),JanMin1+33,\"\"))","v":""},{"$f":"IF(DAY(JanMin1)=1,IF(AND(YEAR(JanMin1+27)=TahunKalender,MONTH(JanMin1+27)=1),JanMin1+27,\"\"),IF(AND(YEAR(JanMin1+34)=TahunKalender,MONTH(JanMin1+34)=1),JanMin1+34,\"\"))","v":""},{"$f":"IF(DAY(JanMin1)=1,IF(AND(YEAR(JanMin1+28)=TahunKalender,MONTH(JanMin1+28)=1),JanMin1+28,\"\"),IF(AND(YEAR(JanMin1+35)=TahunKalender,MONTH(JanMin1+35)=1),JanMin1+35,\"\"))","v":""},null,null,{"$f":"IF(DAY(FebMin1)=1,IF(AND(YEAR(FebMin1+22)=TahunKalender,MONTH(FebMin1+22)=2),FebMin1+22,\"\"),IF(AND(YEAR(FebMin1+29)=TahunKalender,MONTH(FebMin1+29)=2),FebMin1+29,\"\"))","v":"2019-02-25"},{"$f":"IF(DAY(FebMin1)=1,IF(AND(YEAR(FebMin1+23)=TahunKalender,MONTH(FebMin1+23)=2),FebMin1+23,\"\"),IF(AND(YEAR(FebMin1+30)=TahunKalender,MONTH(FebMin1+30)=2),FebMin1+30,\"\"))","v":"2019-02-26"},{"$f":"IF(DAY(FebMin1)=1,IF(AND(YEAR(FebMin1+24)=TahunKalender,MONTH(FebMin1+24)=2),FebMin1+24,\"\"),IF(AND(YEAR(FebMin1+31)=TahunKalender,MONTH(FebMin1+31)=2),FebMin1+31,\"\"))","v":"2019-02-27"},{"$f":"IF(DAY(FebMin1)=1,IF(AND(YEAR(FebMin1+25)=TahunKalender,MONTH(FebMin1+25)=2),FebMin1+25,\"\"),IF(AND(YEAR(FebMin1+32)=TahunKalender,MONTH(FebMin1+32)=2),FebMin1+32,\"\"))","v":"2019-02-28"},{"$f":"IF(DAY(FebMin1)=1,IF(AND(YEAR(FebMin1+26)=TahunKalender,MONTH(FebMin1+26)=2),FebMin1+26,\"\"),IF(AND(YEAR(FebMin1+33)=TahunKalender,MONTH(FebMin1+33)=2),FebMin1+33,\"\"))","v":""},{"$f":"IF(DAY(FebMin1)=1,IF(AND(YEAR(FebMin1+27)=TahunKalender,MONTH(FebMin1+27)=2),FebMin1+27,\"\"),IF(AND(YEAR(FebMin1+34)=TahunKalender,MONTH(FebMin1+34)=2),FebMin1+34,\"\"))","v":""},{"$f":"IF(DAY(FebMin1)=1,IF(AND(YEAR(FebMin1+28)=TahunKalender,MONTH(FebMin1+28)=2),FebMin1+28,\"\"),IF(AND(YEAR(FebMin1+35)=TahunKalender,MONTH(FebMin1+35)=2),FebMin1+35,\"\"))","v":""},null,null,{"$f":"IF(DAY(MarMin1)=1,IF(AND(YEAR(MarMin1+22)=TahunKalender,MONTH(MarMin1+22)=3),MarMin1+22,\"\"),IF(AND(YEAR(MarMin1+29)=TahunKalender,MONTH(MarMin1+29)=3),MarMin1+29,\"\"))","v":"2019-03-25"},{"$f":"IF(DAY(MarMin1)=1,IF(AND(YEAR(MarMin1+23)=TahunKalender,MONTH(MarMin1+23)=3),MarMin1+23,\"\"),IF(AND(YEAR(MarMin1+30)=TahunKalender,MONTH(MarMin1+30)=3),MarMin1+30,\"\"))","v":"2019-03-26"},{"$f":"IF(DAY(MarMin1)=1,IF(AND(YEAR(MarMin1+24)=TahunKalender,MONTH(MarMin1+24)=3),MarMin1+24,\"\"),IF(AND(YEAR(MarMin1+31)=TahunKalender,MONTH(MarMin1+31)=3),MarMin1+31,\"\"))","v":"2019-03-27"},{"$f":"IF(DAY(MarMin1)=1,IF(AND(YEAR(MarMin1+25)=TahunKalender,MONTH(MarMin1+25)=3),MarMin1+25,\"\"),IF(AND(YEAR(MarMin1+32)=TahunKalender,MONTH(MarMin1+32)=3),MarMin1+32,\"\"))","v":"2019-03-28"},{"$f":"IF(DAY(MarMin1)=1,IF(AND(YEAR(MarMin1+26)=TahunKalender,MONTH(MarMin1+26)=3),MarMin1+26,\"\"),IF(AND(YEAR(MarMin1+33)=TahunKalender,MONTH(MarMin1+33)=3),MarMin1+33,\"\"))","v":"2019-03-29"},{"$f":"IF(DAY(MarMin1)=1,IF(AND(YEAR(MarMin1+27)=TahunKalender,MONTH(MarMin1+27)=3),MarMin1+27,\"\"),IF(AND(YEAR(MarMin1+34)=TahunKalender,MONTH(MarMin1+34)=3),MarMin1+34,\"\"))","v":"2019-03-30"},{"$f":"IF(DAY(MarMin1)=1,IF(AND(YEAR(MarMin1+28)=TahunKalender,MONTH(MarMin1+28)=3),MarMin1+28,\"\"),IF(AND(YEAR(MarMin1+35)=TahunKalender,MONTH(MarMin1+35)=3),MarMin1+35,\"\"))","v":"2019-03-31"},null,null,{"$f":"IF(DAY(AprMin1)=1,IF(AND(YEAR(AprMin1+22)=TahunKalender,MONTH(AprMin1+22)=4),AprMin1+22,\"\"),IF(AND(YEAR(AprMin1+29)=TahunKalender,MONTH(AprMin1+29)=4),AprMin1+29,\"\"))","v":"2019-04-29"},{"$f":"IF(DAY(AprMin1)=1,IF(AND(YEAR(AprMin1+23)=TahunKalender,MONTH(AprMin1+23)=4),AprMin1+23,\"\"),IF(AND(YEAR(AprMin1+30)=TahunKalender,MONTH(AprMin1+30)=4),AprMin1+30,\"\"))","v":"2019-04-30"},{"$f":"IF(DAY(AprMin1)=1,IF(AND(YEAR(AprMin1+24)=TahunKalender,MONTH(AprMin1+24)=4),AprMin1+24,\"\"),IF(AND(YEAR(AprMin1+31)=TahunKalender,MONTH(AprMin1+31)=4),AprMin1+31,\"\"))","v":""},{"$f":"IF(DAY(AprMin1)=1,IF(AND(YEAR(AprMin1+25)=TahunKalender,MONTH(AprMin1+25)=4),AprMin1+25,\"\"),IF(AND(YEAR(AprMin1+32)=TahunKalender,MONTH(AprMin1+32)=4),AprMin1+32,\"\"))","v":""},{"$f":"IF(DAY(AprMin1)=1,IF(AND(YEAR(AprMin1+26)=TahunKalender,MONTH(AprMin1+26)=4),AprMin1+26,\"\"),IF(AND(YEAR(AprMin1+33)=TahunKalender,MONTH(AprMin1+33)=4),AprMin1+33,\"\"))","v":""},{"$f":"IF(DAY(AprMin1)=1,IF(AND(YEAR(AprMin1+27)=TahunKalender,MONTH(AprMin1+27)=4),AprMin1+27,\"\"),IF(AND(YEAR(AprMin1+34)=TahunKalender,MONTH(AprMin1+34)=4),AprMin1+34,\"\"))","v":""},{"$f":"IF(DAY(AprMin1)=1,IF(AND(YEAR(AprMin1+28)=TahunKalender,MONTH(AprMin1+28)=4),AprMin1+28,\"\"),IF(AND(YEAR(AprMin1+35)=TahunKalender,MONTH(AprMin1+35)=4),AprMin1+35,\"\"))","v":""}]
[null,null,{"$f":"IF(DAY(JanMin1)=1,IF(AND(YEAR(JanMin1+29)=TahunKalender,MONTH(JanMin1+29)=1),JanMin1+29,\"\"),IF(AND(YEAR(JanMin1+36)=TahunKalender,MONTH(JanMin1+36)=1),JanMin1+36,\"\"))","v":""},{"$f":"IF(DAY(JanMin1)=1,IF(AND(YEAR(JanMin1+30)=TahunKalender,MONTH(JanMin1+30)=1),JanMin1+30,\"\"),IF(AND(YEAR(JanMin1+37)=TahunKalender,MONTH(JanMin1+37)=1),JanMin1+37,\"\"))","v":""},{"$f":"IF(DAY(JanMin1)=1,IF(AND(YEAR(JanMin1+31)=TahunKalender,MONTH(JanMin1+31)=1),JanMin1+31,\"\"),IF(AND(YEAR(JanMin1+38)=TahunKalender,MONTH(JanMin1+38)=1),JanMin1+38,\"\"))","v":""},{"$f":"IF(DAY(JanMin1)=1,IF(AND(YEAR(JanMin1+32)=TahunKalender,MONTH(JanMin1+32)=1),JanMin1+32,\"\"),IF(AND(YEAR(JanMin1+39)=TahunKalender,MONTH(JanMin1+39)=1),JanMin1+39,\"\"))","v":""},{"$f":"IF(DAY(JanMin1)=1,IF(AND(YEAR(JanMin1+33)=TahunKalender,MONTH(JanMin1+33)=1),JanMin1+33,\"\"),IF(AND(YEAR(JanMin1+40)=TahunKalender,MONTH(JanMin1+40)=1),JanMin1+40,\"\"))","v":""},{"$f":"IF(DAY(JanMin1)=1,IF(AND(YEAR(JanMin1+34)=TahunKalender,MONTH(JanMin1+34)=1),JanMin1+34,\"\"),IF(AND(YEAR(JanMin1+41)=TahunKalender,MONTH(JanMin1+41)=1),JanMin1+41,\"\"))","v":""},{"$f":"IF(DAY(JanMin1)=1,IF(AND(YEAR(JanMin1+35)=TahunKalender,MONTH(JanMin1+35)=1),JanMin1+35,\"\"),IF(AND(YEAR(JanMin1+42)=TahunKalender,MONTH(JanMin1+42)=1),JanMin1+42,\"\"))","v":""},null,null,{"$f":"IF(DAY(FebMin1)=1,IF(AND(YEAR(FebMin1+29)=TahunKalender,MONTH(FebMin1+29)=2),FebMin1+29,\"\"),IF(AND(YEAR(FebMin1+36)=TahunKalender,MONTH(FebMin1+36)=2),FebMin1+36,\"\"))","v":""},{"$f":"IF(DAY(FebMin1)=1,IF(AND(YEAR(FebMin1+30)=TahunKalender,MONTH(FebMin1+30)=2),FebMin1+30,\"\"),IF(AND(YEAR(FebMin1+37)=TahunKalender,MONTH(FebMin1+37)=2),FebMin1+37,\"\"))","v":""},{"$f":"IF(DAY(FebMin1)=1,IF(AND(YEAR(FebMin1+31)=TahunKalender,MONTH(FebMin1+31)=2),FebMin1+31,\"\"),IF(AND(YEAR(FebMin1+38)=TahunKalender,MONTH(FebMin1+38)=2),FebMin1+38,\"\"))","v":""},{"$f":"IF(DAY(FebMin1)=1,IF(AND(YEAR(FebMin1+32)=TahunKalender,MONTH(FebMin1+32)=2),FebMin1+32,\"\"),IF(AND(YEAR(FebMin1+39)=TahunKalender,MONTH(FebMin1+39)=2),FebMin1+39,\"\"))","v":""},{"$f":"IF(DAY(FebMin1)=1,IF(AND(YEAR(FebMin1+33)=TahunKalender,MONTH(FebMin1+33)=2),FebMin1+33,\"\"),IF(AND(YEAR(FebMin1+40)=TahunKalender,MONTH(FebMin1+40)=2),FebMin1+40,\"\"))","v":""},{"$f":"IF(DAY(FebMin1)=1,IF(AND(YEAR(FebMin1+34)=TahunKalender,MONTH(FebMin1+34)=2),FebMin1+34,\"\"),IF(AND(YEAR(FebMin1+41)=TahunKalender,MONTH(FebMin1+41)=2),FebMin1+41,\"\"))","v":""},{"$f":"IF(DAY(FebMin1)=1,IF(AND(YEAR(FebMin1+35)=TahunKalender,MONTH(FebMin1+35)=2),FebMin1+35,\"\"),IF(AND(YEAR(FebMin1+42)=TahunKalender,MONTH(FebMin1+42)=2),FebMin1+42,\"\"))","v":""},null,null,{"$f":"IF(DAY(MarMin1)=1,IF(AND(YEAR(MarMin1+29)=TahunKalender,MONTH(MarMin1+29)=3),MarMin1+29,\"\"),IF(AND(YEAR(MarMin1+36)=TahunKalender,MONTH(MarMin1+36)=3),MarMin1+36,\"\"))","v":""},{"$f":"IF(DAY(MarMin1)=1,IF(AND(YEAR(MarMin1+30)=TahunKalender,MONTH(MarMin1+30)=3),MarMin1+30,\"\"),IF(AND(YEAR(MarMin1+37)=TahunKalender,MONTH(MarMin1+37)=3),MarMin1+37,\"\"))","v":""},{"$f":"IF(DAY(MarMin1)=1,IF(AND(YEAR(MarMin1+31)=TahunKalender,MONTH(MarMin1+31)=3),MarMin1+31,\"\"),IF(AND(YEAR(MarMin1+38)=TahunKalender,MONTH(MarMin1+38)=3),MarMin1+38,\"\"))","v":""},{"$f":"IF(DAY(MarMin1)=1,IF(AND(YEAR(MarMin1+32)=TahunKalender,MONTH(MarMin1+32)=3),MarMin1+32,\"\"),IF(AND(YEAR(MarMin1+39)=TahunKalender,MONTH(MarMin1+39)=3),MarMin1+39,\"\"))","v":""},{"$f":"IF(DAY(MarMin1)=1,IF(AND(YEAR(MarMin1+33)=TahunKalender,MONTH(MarMin1+33)=3),MarMin1+33,\"\"),IF(AND(YEAR(MarMin1+40)=TahunKalender,MONTH(MarMin1+40)=3),MarMin1+40,\"\"))","v":""},{"$f":"IF(DAY(MarMin1)=1,IF(AND(YEAR(MarMin1+34)=TahunKalender,MONTH(MarMin1+34)=3),MarMin1+34,\"\"),IF(AND(YEAR(MarMin1+41)=TahunKalender,MONTH(MarMin1+41)=3),MarMin1+41,\"\"))","v":""},{"$f":"IF(DAY(MarMin1)=1,IF(AND(YEAR(MarMin1+35)=TahunKalender,MONTH(MarMin1+35)=3),MarMin1+35,\"\"),IF(AND(YEAR(MarMin1+42)=TahunKalender,MONTH(MarMin1+42)=3),MarMin1+42,\"\"))","v":""},null,null,{"$f":"IF(DAY(AprMin1)=1,IF(AND(YEAR(AprMin1+29)=TahunKalender,MONTH(AprMin1+29)=4),AprMin1+29,\"\"),IF(AND(YEAR(AprMin1+36)=TahunKalender,MONTH(AprMin1+36)=4),AprMin1+36,\"\"))","v":""},{"$f":"IF(DAY(AprMin1)=1,IF(AND(YEAR(AprMin1+30)=TahunKalender,MONTH(AprMin1+30)=4),AprMin1+30,\"\"),IF(AND(YEAR(AprMin1+37)=TahunKalender,MONTH(AprMin1+37)=4),AprMin1+37,\"\"))","v":""},{"$f":"IF(DAY(AprMin1)=1,IF(AND(YEAR(AprMin1+31)=TahunKalender,MONTH(AprMin1+31)=4),AprMin1+31,\"\"),IF(AND(YEAR(AprMin1+38)=TahunKalender,MONTH(AprMin1+38)=4),AprMin1+38,\"\"))","v":""},{"$f":"IF(DAY(AprMin1)=1,IF(AND(YEAR(AprMin1+32)=TahunKalender,MONTH(AprMin1+32)=4),AprMin1+32,\"\"),IF(AND(YEAR(AprMin1+39)=TahunKalender,MONTH(AprMin1+39)=4),AprMin1+39,\"\"))","v":""},{"$f":"IF(DAY(AprMin1)=1,IF(AND(YEAR(AprMin1+33)=TahunKalender,MONTH(AprMin1+33)=4),AprMin1+33,\"\"),IF(AND(YEAR(AprMin1+40)=TahunKalender,MONTH(AprMin1+40)=4),AprMin1+40,\"\"))","v":""},{"$f":"IF(DAY(AprMin1)=1,IF(AND(YEAR(AprMin1+34)=TahunKalender,MONTH(AprMin1+34)=4),AprMin1+34,\"\"),IF(AND(YEAR(AprMin1+41)=TahunKalender,MONTH(AprMin1+41)=4),AprMin1+41,\"\"))","v":""},{"$f":"IF(DAY(AprMin1)=1,IF(AND(YEAR(AprMin1+35)=TahunKalender,MONTH(AprMin1+35)=4),AprMin1+35,\"\"),IF(AND(YEAR(AprMin1+42)=TahunKalender,MONTH(AprMin1+42)=4),AprMin1+42,\"\"))","v":""}]
["Kalender Mei ada di sel C34 hingga I40, kalender Juni ada di sel L34 hingga R40, kalender Juli di sel U34 hingga AA40, dan kalender Agustus di sel AD34 hingga AJ40."]
["Nama-nama bulan ada di baris ini. Label Mei ada di sel C33, label Juni di sel L33, label Juli di sel U33, dan label Agustus di sel AD33.",null,{"$f":"DATE(TahunKalender,5,1)","v":"2019-05-01"},{"$nulls":8},{"$f":"DATE(TahunKalender,6,1)","v":"2019-06-01"},{"$nulls":8},{"$f":"DATE(TahunKalender,7,1)","v":"2019-07-01"},{"$nulls":8},{"$f":"DATE(TahunKalender,8,1)","v":"2019-08-01"}]
["Nama-nama hari ada di baris ini. Nama hari bulan Mei di sel C34 hingga I34, hari bulan Juni di sel L34 hingga R34, hari bulan Juli di sel U34 hingga AA34, dan hari bulan Agustus di sel AD34 hingga AJ34.",null,"Sn","Sl","Rb","Km","Jm","Sb","Mn",null,null,"Sn","Sl","Rb","Km","Jm","Sb","Mn",null,null,"Sn","Sl","Rb","Km","Jm","Sb","Mn",null,null,"Sn","Sl","Rb","Km","Jm","Sb","Mn"]
["Tanggal otomatis diperbarui di baris ini. Tanggal bulan Mei ada di sel sebelah kanan, sel C35 hingga I40, tanggal Juni di sel L35 hingga R40, tanggal Juli di sel U35 hingga AA35, dan tanggal Agustus di sel AD35 hingga AJ40. Instruksi berikutnya ada di sel A41.",null,{"$f":"IF(DAY(MeiMin1)=1,\"\",IF(AND(YEAR(MeiMin1+1)=TahunKalender,MONTH(MeiMin1+1)=5),MeiMin1+1,\"\"))","v":""},{"$f":"IF(DAY(MeiMin1)=1,\"\",IF(AND(YEAR(MeiMin1+2)=TahunKalender,MONTH(MeiMin1+2)=5),MeiMin1+2,\"\"))","v":""},{"$f":"IF(DAY(MeiMin1)=1,\"\",IF(AND(YEAR(MeiMin1+3)=TahunKalender,MONTH(MeiMin1+3)=5),MeiMin1+3,\"\"))","v":"2019-05-01"},{"$f":"IF(DAY(MeiMin1)=1,\"\",IF(AND(YEAR(MeiMin1+4)=TahunKalender,MONTH(MeiMin1+4)=5),MeiMin1+4,\"\"))","v":"2019-05-02"},{"$f":"IF(DAY(MeiMin1)=1,\"\",IF(AND(YEAR(MeiMin1+5)=TahunKalender,MONTH(MeiMin1+5)=5),MeiMin1+5,\"\"))","v":"2019-05-03"},{"$f":"IF(DAY(MeiMin1)=1,\"\",IF(AND(YEAR(MeiMin1+6)=TahunKalender,MONTH(MeiMin1+6)=5),MeiMin1+6,\"\"))","v":"2019-05-04"},{"$f":"IF(DAY(MeiMin1)=1,IF(AND(YEAR(MeiMin1)=TahunKalender,MONTH(MeiMin1)=5),MeiMin1,\"\"),IF(AND(YEAR(MeiMin1+7)=TahunKalender,MONTH(MeiMin1+7)=5),MeiMin1+7,\"\"))","v":"2019-05-05"},null,null,{"$f":"IF(DAY(JunMin1)=1,\"\",IF(AND(YEAR(JunMin1+1)=TahunKalender,MONTH(JunMin1+1)=6),JunMin1+1,\"\"))","v":""},{"$f":"IF(DAY(JunMin1)=1,\"\",IF(AND(YEAR(JunMin1+2)=TahunKalender,MONTH(JunMin1+2)=6),JunMin1+2,\"\"))","v":""},{"$f":"IF(DAY(JunMin1)=1,\"\",IF(AND(YEAR(JunMin1+3)=TahunKalender,MONTH(JunMin1+3)=6),JunMin1+3,\"\"))","v":""},{"$f":"IF(DAY(JunMin1)=1,\"\",IF(AND(YEAR(JunMin1+4)=TahunKalender,MONTH(JunMin1+4)=6),JunMin1+4,\"\"))","v":""},{"$f":"IF(DAY(JunMin1)=1,\"\",IF(AND(YEAR(JunMin1+5)=TahunKalender,MONTH(JunMin1+5)=6),JunMin1+5,\"\"))","v":""},{"$f":"IF(DAY(JunMin1)=1,\"\",IF(AND(YEAR(JunMin1+6)=TahunKalender,MONTH(JunMin1+6)=6),JunMin1+6,\"\"))","v":"2019-06-01"},{"$f":"IF(DAY(JunMin1)=1,IF(AND(YEAR(JunMin1)=TahunKalender,MONTH(JunMin1)=6),JunMin1,\"\"),IF(AND(YEAR(JunMin1+7)=TahunKalender,MONTH(JunMin1+7)=6),JunMin1+7,\"\"))","v":"2019-06-02"},null,null,{"$f":"IF(DAY(JulMin1)=1,\"\",IF(AND(YEAR(JulMin1+1)=TahunKalender,MONTH(JulMin1+1)=7),JulMin1+1,\"\"))","v":"2019-07-01"},{"$f":"IF(DAY(JulMin1)=1,\"\",IF(AND(YEAR(JulMin1+2)=TahunKalender,MONTH(JulMin1+2)=7),JulMin1+2,\"\"))","v":"2019-07-02"},{"$f":"IF(DAY(JulMin1)=1,\"\",IF(AND(YEAR(JulMin1+3)=TahunKalender,MONTH(JulMin1+3)=7),JulMin1+3,\"\"))","v":"2019-07-03"},{"$f":"IF(DAY(JulMin1)=1,\"\",IF(AND(YEAR(JulMin1+4)=TahunKalender,MONTH(JulMin1+4)=7),JulMin1+4,\"\"))","v":"2019-07-04"},{"$f":"IF(DAY(JulMin1)=1,\"\",IF(AND(YEAR(JulMin1+5)=TahunKalender,MONTH(JulMin1+5)=7),JulMin1+5,\"\"))","v":"2019-07-05"},{"$f":"IF(DAY(JulMin1)=1,\"\",IF(AND(YEAR(JulMin1+6)=TahunKalender,MONTH(JulMin1+6)=7),JulMin1+6,\"\"))","v":"2019-07-06"},{"$f":"IF(DAY(JulMin1)=1,IF(AND(YEAR(JulMin1)=TahunKalender,MONTH(JulMin1)=7),JulMin1,\"\"),IF(AND(YEAR(JulMin1+7)=TahunKalender,MONTH(JulMin1+7)=7),JulMin1+7,\"\"))","v":"2019-07-07"},null,null,{"$f":"IF(DAY(AguMin1)=1,\"\",IF(AND(YEAR(AguMin1+1)=TahunKalender,MONTH(AguMin1+1)=8),AguMin1+1,\"\"))","v":""},{"$f":"IF(DAY(AguMin1)=1,\"\",IF(AND(YEAR(AguMin1+2)=TahunKalender,MONTH(AguMin1+2)=8),AguMin1+2,\"\"))","v":""},{"$f":"IF(DAY(AguMin1)=1,\"\",IF(AND(YEAR(AguMin1+3)=TahunKalender,MONTH(AguMin1+3)=8),AguMin1+3,\"\"))","v":""},{"$f":"IF(DAY(AguMin1)=1,\"\",IF(AND(YEAR(AguMin1+4)=TahunKalender,MONTH(AguMin1+4)=8),AguMin1+4,\"\"))","v":"2019-08-01"},{"$f":"IF(DAY(AguMin1)=1,\"\",IF(AND(YEAR(AguMin1+5)=TahunKalender,MONTH(AguMin1+5)=8),AguMin1+5,\"\"))","v":"2019-08-02"},{"$f":"IF(DAY(AguMin1)=1,\"\",IF(AND(YEAR(AguMin1+6)=TahunKalender,MONTH(AguMin1+6)=8),AguMin1+6,\"\"))","v":"2019-08-03"},{"$f":"IF(DAY(AguMin1)=1,IF(AND(YEAR(AguMin1)=TahunKalender,MONTH(AguMin1)=8),AguMin1,\"\"),IF(AND(YEAR(AguMin1+7)=TahunKalender,MONTH(AguMin1+7)=8),AguMin1+7,\"\"))","v":"2019-08-04"}]
[null,null,{"$f":"IF(DAY(MeiMin1)=1,IF(AND(YEAR(MeiMin1+1)=TahunKalender,MONTH(MeiMin1+1)=5),MeiMin1+1,\"\"),IF(AND(YEAR(MeiMin1+8)=TahunKalender,MONTH(MeiMin1+8)=5),MeiMin1+8,\"\"))","v":"2019-05-06"},{"$f":"IF(DAY(MeiMin1)=1,IF(AND(YEAR(MeiMin1+2)=TahunKalender,MONTH(MeiMin1+2)=5),MeiMin1+2,\"\"),IF(AND(YEAR(MeiMin1+9)=TahunKalender,MONTH(MeiMin1+9)=5),MeiMin1+9,\"\"))","v":"2019-05-07"},{"$f":"IF(DAY(MeiMin1)=1,IF(AND(YEAR(MeiMin1+3)=TahunKalender,MONTH(MeiMin1+3)=5),MeiMin1+3,\"\"),IF(AND(YEAR(MeiMin1+10)=TahunKalender,MONTH(MeiMin1+10)=5),MeiMin1+10,\"\"))","v":"2019-05-08"},{"$f":"IF(DAY(MeiMin1)=1,IF(AND(YEAR(MeiMin1+4)=TahunKalender,MONTH(MeiMin1+4)=5),MeiMin1+4,\"\"),IF(AND(YEAR(MeiMin1+11)=TahunKalender,MONTH(MeiMin1+11)=5),MeiMin1+11,\"\"))","v":"2019-05-09"},{"$f":"IF(DAY(MeiMin1)=1,IF(AND(YEAR(MeiMin1+5)=TahunKalender,MONTH(MeiMin1+5)=5),MeiMin1+5,\"\"),IF(AND(YEAR(MeiMin1+12)=TahunKalender,MONTH(MeiMin1+12)=5),MeiMin1+12,\"\"))","v":"2019-05-10"},{"$f":"IF(DAY(MeiMin1)=1,IF(AND(YEAR(MeiMin1+6)=TahunKalender,MONTH(MeiMin1+6)=5),MeiMin1+6,\"\"),IF(AND(YEAR(MeiMin1+13)=TahunKalender,MONTH(MeiMin1+13)=5),MeiMin1+13,\"\"))","v":"2019-05-11"},{"$f":"IF(DAY(MeiMin1)=1,IF(AND(YEAR(MeiMin1+7)=TahunKalender,MONTH(MeiMin1+7)=5),MeiMin1+7,\"\"),IF(AND(YEAR(MeiMin1+14)=TahunKalender,MONTH(MeiMin1+14)=5),MeiMin1+14,\"\"))","v":"2019-05-12"},null,null,{"$f":"IF(DAY(JunMin1)=1,IF(AND(YEAR(JunMin1+1)=TahunKalender,MONTH(JunMin1+1)=6),JunMin1+1,\"\"),IF(AND(YEAR(JunMin1+8)=TahunKalender,MONTH(JunMin1+8)=6),JunMin1+8,\"\"))","v":"2019-06-03"},{"$f":"IF(DAY(JunMin1)=1,IF(AND(YEAR(JunMin1+2)=TahunKalender,MONTH(JunMin1+2)=6),JunMin1+2,\"\"),IF(AND(YEAR(JunMin1+9)=TahunKalender,MONTH(JunMin1+9)=6),JunMin1+9,\"\"))","v":"2019-06-04"},{"$f":"IF(DAY(JunMin1)=1,IF(AND(YEAR(JunMin1+3)=TahunKalender,MONTH(JunMin1+3)=6),JunMin1+3,\"\"),IF(AND(YEAR(JunMin1+10)=TahunKalender,MONTH(JunMin1+10)=6),JunMin1+10,\"\"))","v":"2019-06-05"},{"$f":"IF(DAY(JunMin1)=1,IF(AND(YEAR(JunMin1+4)=TahunKalender,MONTH(JunMin1+4)=6),JunMin1+4,\"\"),IF(AND(YEAR(JunMin1+11)=TahunKalender,MONTH(JunMin1+11)=6),JunMin1+11,\"\"))","v":"2019-06-06"},{"$f":"IF(DAY(JunMin1)=1,IF(AND(YEAR(JunMin1+5)=TahunKalender,MONTH(JunMin1+5)=6),JunMin1+5,\"\"),IF(AND(YEAR(JunMin1+12)=TahunKalender,MONTH(JunMin1+12)=6),JunMin1+12,\"\"))","v":"2019-06-07"},{"$f":"IF(DAY(JunMin1)=1,IF(AND(YEAR(JunMin1+6)=TahunKalender,MONTH(JunMin1+6)=6),JunMin1+6,\"\"),IF(AND(YEAR(JunMin1+13)=TahunKalender,MONTH(JunMin1+13)=6),JunMin1+13,\"\"))","v":"2019-06-08"},{"$f":"IF(DAY(JunMin1)=1,IF(AND(YEAR(JunMin1+7)=TahunKalender,MONTH(JunMin1+7)=6),JunMin1+7,\"\"),IF(AND(YEAR(JunMin1+14)=TahunKalender,MONTH(JunMin1+14)=6),JunMin1+14,\"\"))","v":"2019-06-09"},null,null,{"$f":"IF(DAY(JulMin1)=1,IF(AND(YEAR(JulMin1+1)=TahunKalender,MONTH(JulMin1+1)=7),JulMin1+1,\"\"),IF(AND(YEAR(JulMin1+8)=TahunKalender,MONTH(JulMin1+8)=7),JulMin1+8,\"\"))","v":"2019-07-08"},{"$f":"IF(DAY(JulMin1)=1,IF(AND(YEAR(JulMin1+2)=TahunKalender,MONTH(JulMin1+2)=7),JulMin1+2,\"\"),IF(AND(YEAR(JulMin1+9)=TahunKalender,MONTH(JulMin1+9)=7),JulMin1+9,\"\"))","v":"2019-07-09"},{"$f":"IF(DAY(JulMin1)=1,IF(AND(YEAR(JulMin1+3)=TahunKalender,MONTH(JulMin1+3)=7),JulMin1+3,\"\"),IF(AND(YEAR(JulMin1+10)=TahunKalender,MONTH(JulMin1+10)=7),JulMin1+10,\"\"))","v":"2019-07-10"},{"$f":"IF(DAY(JulMin1)=1,IF(AND(YEAR(JulMin1+4)=TahunKalender,MONTH(JulMin1+4)=7),JulMin1+4,\"\"),IF(AND(YEAR(JulMin1+11)=TahunKalender,MONTH(JulMin1+11)=7),JulMin1+11,\"\"))","v":"2019-07-11"},{"$f":"IF(DAY(JulMin1)=1,IF(AND(YEAR(JulMin1+5)=TahunKalender,MONTH(JulMin1+5)=7),JulMin1+5,\"\"),IF(AND(YEAR(JulMin1+12)=TahunKalender,MONTH(JulMin1+12)=7),JulMin1+12,\"\"))","v":"2019-07-12"},{"$f":"IF(DAY(JulMin1)=1,IF(AND(YEAR(JulMin1+6)=TahunKalender,MONTH(JulMin1+6)=7),JulMin1+6,\"\"),IF(AND(YEAR(JulMin1+13)=TahunKalender,MONTH(JulMin1+13)=7),JulMin1+13,\"\"))","v":"2019-07-13"},{"$f":"IF(DAY(JulMin1)=1,IF(AND(YEAR(JulMin1+7)=TahunKalender,MONTH(JulMin1+7)=7),JulMin1+7,\"\"),IF(AND(YEAR(JulMin1+14)=TahunKalender,MONTH(JulMin1+14)=7),JulMin1+14,\"\"))","v":"2019-07-14"},null,null,{"$f":"IF(DAY(AguMin1)=1,IF(AND(YEAR(AguMin1+1)=TahunKalender,MONTH(AguMin1+1)=8),AguMin1+1,\"\"),IF(AND(YEAR(AguMin1+8)=TahunKalender,MONTH(AguMin1+8)=8),AguMin1+8,\"\"))","v":"2019-08-05"},{"$f":"IF(DAY(AguMin1)=1,IF(AND(YEAR(AguMin1+2)=TahunKalender,MONTH(AguMin1+2)=8),AguMin1+2,\"\"),IF(AND(YEAR(AguMin1+9)=TahunKalender,MONTH(AguMin1+9)=8),AguMin1+9,\"\"))","v":"2019-08-06"},{"$f":"IF(DAY(AguMin1)=1,IF(AND(YEAR(AguMin1+3)=TahunKalender,MONTH(AguMin1+3)=8),AguMin1+3,\"\"),IF(AND(YEAR(AguMin1+10)=TahunKalender,MONTH(AguMin1+10)=8),AguMin1+10,\"\"))","v":"2019-08-07"},{"$f":"IF(DAY(AguMin1)=1,IF(AND(YEAR(AguMin1+4)=TahunKalender,MONTH(AguMin1+4)=8),AguMin1+4,\"\"),IF(AND(YEAR(AguMin1+11)=TahunKalender,MONTH(AguMin1+11)=8),AguMin1+11,\"\"))","v":"2019-08-08"},{"$f":"IF(DAY(AguMin1)=1,IF(AND(YEAR(AguMin1+5)=TahunKalender,MONTH(AguMin1+5)=8),AguMin1+5,\"\"),IF(AND(YEAR(AguMin1+12)=TahunKalender,MONTH(AguMin1+12)=8),AguMin1+12,\"\"))","v":"2019-08-09"},{"$f":"IF(DAY(AguMin1)=1,IF(AND(YEAR(AguMin1+6)=TahunKalender,MONTH(AguMin1+6)=8),AguMin1+6,\"\"),IF(AND(YEAR(AguMin1+13)=TahunKalender,MONTH(AguMin1+13)=8),AguMin1+13,\"\"))","v":"2019-08-10"},{"$f":"IF(DAY(AguMin1)=1,IF(AND(YEAR(AguMin1+7)=TahunKalender,MONTH(AguMin1+7)=8),AguMin1+7,\"\"),IF(AND(YEAR(AguMin1+14)=TahunKalender,MONTH(AguMin1+14)=8),AguMin1+14,\"\"))","v":"2019-08-11"}]
[null,null,{"$f":"IF(DAY(MeiMin1)=1,IF(AND(YEAR(MeiMin1+8)=TahunKalender,MONTH(MeiMin1+8)=5),MeiMin1+8,\"\"),IF(AND(YEAR(MeiMin1+15)=TahunKalender,MONTH(MeiMin1+15)=5),MeiMin1+15,\"\"))","v":"2019-05-13"},{"$f":"IF(DAY(MeiMin1)=1,IF(AND(YEAR(MeiMin1+9)=TahunKalender,MONTH(MeiMin1+9)=5),MeiMin1+9,\"\"),IF(AND(YEAR(MeiMin1+16)=TahunKalender,MONTH(MeiMin1+16)=5),MeiMin1+16,\"\"))","v":"2019-05-14"},{"$f":"IF(DAY(MeiMin1)=1,IF(AND(YEAR(MeiMin1+10)=TahunKalender,MONTH(MeiMin1+10)=5),MeiMin1+10,\"\"),IF(AND(YEAR(MeiMin1+17)=TahunKalender,MONTH(MeiMin1+17)=5),MeiMin1+17,\"\"))","v":"2019-05-15"},{"$f":"IF(DAY(MeiMin1)=1,IF(AND(YEAR(MeiMin1+11)=TahunKalender,MONTH(MeiMin1+11)=5),MeiMin1+11,\"\"),IF(AND(YEAR(MeiMin1+18)=TahunKalender,MONTH(MeiMin1+18)=5),MeiMin1+18,\"\"))","v":"2019-05-16"},{"$f":"IF(DAY(MeiMin1)=1,IF(AND(YEAR(MeiMin1+12)=TahunKalender,MONTH(MeiMin1+12)=5),MeiMin1+12,\"\"),IF(AND(YEAR(MeiMin1+19)=TahunKalender,MONTH(MeiMin1+19)=5),MeiMin1+19,\"\"))","v":"2019-05-17"},{"$f":"IF(DAY(MeiMin1)=1,IF(AND(YEAR(MeiMin1+13)=TahunKalender,MONTH(MeiMin1+13)=5),MeiMin1+13,\"\"),IF(AND(YEAR(MeiMin1+20)=TahunKalender,MONTH(MeiMin1+20)=5),MeiMin1+20,\"\"))","v":"2019-05-18"},{"$f":"IF(DAY(MeiMin1)=1,IF(AND(YEAR(MeiMin1+14)=TahunKalender,MONTH(MeiMin1+14)=5),MeiMin1+14,\"\"),IF(AND(YEAR(MeiMin1+21)=TahunKalender,MONTH(MeiMin1+21)=5),MeiMin1+21,\"\"))","v":"2019-05-19"},null,null,{"$f":"IF(DAY(JunMin1)=1,IF(AND(YEAR(JunMin1+8)=TahunKalender,MONTH(JunMin1+8)=6),JunMin1+8,\"\"),IF(AND(YEAR(JunMin1+15)=TahunKalender,MONTH(JunMin1+15)=6),JunMin1+15,\"\"))","v":"2019-06-10"},{"$f":"IF(DAY(JunMin1)=1,IF(AND(YEAR(JunMin1+9)=TahunKalender,MONTH(JunMin1+9)=6),JunMin1+9,\"\"),IF(AND(YEAR(JunMin1+16)=TahunKalender,MONTH(JunMin1+16)=6),JunMin1+16,\"\"))","v":"2019-06-11"},{"$f":"IF(DAY(JunMin1)=1,IF(AND(YEAR(JunMin1+10)=TahunKalender,MONTH(JunMin1+10)=6),JunMin1+10,\"\"),IF(AND(YEAR(JunMin1+17)=TahunKalender,MONTH(JunMin1+17)=6),JunMin1+17,\"\"))","v":"2019-06-12"},{"$f":"IF(DAY(JunMin1)=1,IF(AND(YEAR(JunMin1+11)=TahunKalender,MONTH(JunMin1+11)=6),JunMin1+11,\"\"),IF(AND(YEAR(JunMin1+18)=TahunKalender,MONTH(JunMin1+18)=6),JunMin1+18,\"\"))","v":"2019-06-13"},{"$f":"IF(DAY(JunMin1)=1,IF(AND(YEAR(JunMin1+12)=TahunKalender,MONTH(JunMin1+12)=6),JunMin1+12,\"\"),IF(AND(YEAR(JunMin1+19)=TahunKalender,MONTH(JunMin1+19)=6),JunMin1+19,\"\"))","v":"2019-06-14"},{"$f":"IF(DAY(JunMin1)=1,IF(AND(YEAR(JunMin1+13)=TahunKalender,MONTH(JunMin1+13)=6),JunMin1+13,\"\"),IF(AND(YEAR(JunMin1+20)=TahunKalender,MONTH(JunMin1+20)=6),JunMin1+20,\"\"))","v":"2019-06-15"},{"$f":"IF(DAY(JunMin1)=1,IF(AND(YEAR(JunMin1+14)=TahunKalender,MONTH(JunMin1+14)=6),JunMin1+14,\"\"),IF(AND(YEAR(JunMin1+21)=TahunKalender,MONTH(JunMin1+21)=6),JunMin1+21,\"\"))","v":"2019-06-16"},null,null,{"$f":"IF(DAY(JulMin1)=1,IF(AND(YEAR(JulMin1+8)=TahunKalender,MONTH(JulMin1+8)=7),JulMin1+8,\"\"),IF(AND(YEAR(JulMin1+15)=TahunKalender,MONTH(JulMin1+15)=7),JulMin1+15,\"\"))","v":"2019-07-15"},{"$f":"IF(DAY(JulMin1)=1,IF(AND(YEAR(JulMin1+9)=TahunKalender,MONTH(JulMin1+9)=7),JulMin1+9,\"\"),IF(AND(YEAR(JulMin1+16)=TahunKalender,MONTH(JulMin1+16)=7),JulMin1+16,\"\"))","v":"2019-07-16"},{"$f":"IF(DAY(JulMin1)=1,IF(AND(YEAR(JulMin1+10)=TahunKalender,MONTH(JulMin1+10)=7),JulMin1+10,\"\"),IF(AND(YEAR(JulMin1+17)=TahunKalender,MONTH(JulMin1+17)=7),JulMin1+17,\"\"))","v":"2019-07-17"},{"$f":"IF(DAY(JulMin1)=1,IF(AND(YEAR(JulMin1+11)=TahunKalender,MONTH(JulMin1+11)=7),JulMin1+11,\"\"),IF(AND(YEAR(JulMin1+18)=TahunKalender,MONTH(JulMin1+18)=7),JulMin1+18,\"\"))","v":"2019-07-18"},{"$f":"IF(DAY(JulMin1)=1,IF(AND(YEAR(JulMin1+12)=TahunKalender,MONTH(JulMin1+12)=7),JulMin1+12,\"\"),IF(AND(YEAR(JulMin1+19)=TahunKalender,MONTH(JulMin1+19)=7),JulMin1+19,\"\"))","v":"2019-07-19"},{"$f":"IF(DAY(JulMin1)=1,IF(AND(YEAR(JulMin1+13)=TahunKalender,MONTH(JulMin1+13)=7),JulMin1+13,\"\"),IF(AND(YEAR(JulMin1+20)=TahunKalender,MONTH(JulMin1+20)=7),JulMin1+20,\"\"))","v":"2019-07-20"},{"$f":"IF(DAY(JulMin1)=1,IF(AND(YEAR(JulMin1+14)=TahunKalender,MONTH(JulMin1+14)=7),JulMin1+14,\"\"),IF(AND(YEAR(JulMin1+21)=TahunKalender,MONTH(JulMin1+21)=7),JulMin1+21,\"\"))","v":"2019-07-21"},null,null,{"$f":"IF(DAY(AguMin1)=1,IF(AND(YEAR(AguMin1+8)=TahunKalender,MONTH(AguMin1+8)=8),AguMin1+8,\"\"),IF(AND(YEAR(AguMin1+15)=TahunKalender,MONTH(AguMin1+15)=8),AguMin1+15,\"\"))","v":"2019-08-12"},{"$f":"IF(DAY(AguMin1)=1,IF(AND(YEAR(AguMin1+9)=TahunKalender,MONTH(AguMin1+9)=8),AguMin1+9,\"\"),IF(AND(YEAR(AguMin1+16)=TahunKalender,MONTH(AguMin1+16)=8),AguMin1+16,\"\"))","v":"2019-08-13"},{"$f":"IF(DAY(AguMin1)=1,IF(AND(YEAR(AguMin1+10)=TahunKalender,MONTH(AguMin1+10)=8),AguMin1+10,\"\"),IF(AND(YEAR(AguMin1+17)=TahunKalender,MONTH(AguMin1+17)=8),AguMin1+17,\"\"))","v":"2019-08-14"},{"$f":"IF(DAY(AguMin1)=1,IF(AND(YEAR(AguMin1+11)=TahunKalender,MONTH(AguMin1+11)=8),AguMin1+11,\"\"),IF(AND(YEAR(AguMin1+18)=TahunKalender,MONTH(AguMin1+18)=8),AguMin1+18,\"\"))","v":"2019-08-15"},{"$f":"IF(DAY(AguMin1)=1,IF(AND(YEAR(AguMin1+12)=TahunKalender,MONTH(AguMin1+12)=8),AguMin1+12,\"\"),IF(AND(YEAR(AguMin1+19)=TahunKalender,MONTH(AguMin1+19)=8),AguMin1+19,\"\"))","v":"2019-08-16"},{"$f":"IF(DAY(AguMin1)=1,IF(AND(YEAR(AguMin1+13)=TahunKalender,MONTH(AguMin1+13)=8),AguMin1+13,\"\"),IF(AND(YEAR(AguMin1+20)=TahunKalender,MONTH(AguMin1+20)=8),AguMin1+20,\"\"))","v":"2019-08-17"},{"$f":"IF(DAY(AguMin1)=1,IF(AND(YEAR(AguMin1+14)=TahunKalender,MONTH(AguMin1+14)=8),AguMin1+14,\"\"),IF(AND(YEAR(AguMin1+21)=TahunKalender,MONTH(AguMin1+21)=8),AguMin1+21,\"\"))","v":"2019-08-18"}]
[null,null,{"$f":"IF(DAY(MeiMin1)=1,IF(AND(YEAR(MeiMin1+15)=TahunKalender,MONTH(MeiMin1+15)=5),MeiMin1+15,\"\"),IF(AND(YEAR(MeiMin1+22)=TahunKalender,MONTH(MeiMin1+22)=5),MeiMin1+22,\"\"))","v":"2019-05-20"},{"$f":"IF(DAY(MeiMin1)=1,IF(AND(YEAR(MeiMin1+16)=TahunKalender,MONTH(MeiMin1+16)=5),MeiMin1+16,\"\"),IF(AND(YEAR(MeiMin1+23)=TahunKalender,MONTH(MeiMin1+23)=5),MeiMin1+23,\"\"))","v":"2019-05-21"},{"$f":"IF(DAY(MeiMin1)=1,IF(AND(YEAR(MeiMin1+17)=TahunKalender,MONTH(MeiMin1+17)=5),MeiMin1+17,\"\"),IF(AND(YEAR(MeiMin1+24)=TahunKalender,MONTH(MeiMin1+24)=5),MeiMin1+24,\"\"))","v":"2019-05-22"},{"$f":"IF(DAY(MeiMin1)=1,IF(AND(YEAR(MeiMin1+18)=TahunKalender,MONTH(MeiMin1+18)=5),MeiMin1+18,\"\"),IF(AND(YEAR(MeiMin1+25)=TahunKalender,MONTH(MeiMin1+25)=5),MeiMin1+25,\"\"))","v":"2019-05-23"},{"$f":"IF(DAY(MeiMin1)=1,IF(AND(YEAR(MeiMin1+19)=TahunKalender,MONTH(MeiMin1+19)=5),MeiMin1+19,\"\"),IF(AND(YEAR(MeiMin1+26)=TahunKalender,MONTH(MeiMin1+26)=5),MeiMin1+26,\"\"))","v":"2019-05-24"},{"$f":"IF(DAY(MeiMin1)=1,IF(AND(YEAR(MeiMin1+20)=TahunKalender,MONTH(MeiMin1+20)=5),MeiMin1+20,\"\"),IF(AND(YEAR(MeiMin1+27)=TahunKalender,MONTH(MeiMin1+27)=5),MeiMin1+27,\"\"))","v":"2019-05-25"},{"$f":"IF(DAY(MeiMin1)=1,IF(AND(YEAR(MeiMin1+21)=TahunKalender,MONTH(MeiMin1+21)=5),MeiMin1+21,\"\"),IF(AND(YEAR(MeiMin1+28)=TahunKalender,MONTH(MeiMin1+28)=5),MeiMin1+28,\"\"))","v":"2019-05-26"},null,null,{"$f":"IF(DAY(JunMin1)=1,IF(AND(YEAR(JunMin1+15)=TahunKalender,MONTH(JunMin1+15)=6),JunMin1+15,\"\"),IF(AND(YEAR(JunMin1+22)=TahunKalender,MONTH(JunMin1+22)=6),JunMin1+22,\"\"))","v":"2019-06-17"},{"$f":"IF(DAY(JunMin1)=1,IF(AND(YEAR(JunMin1+16)=TahunKalender,MONTH(JunMin1+16)=6),JunMin1+16,\"\"),IF(AND(YEAR(JunMin1+23)=TahunKalender,MONTH(JunMin1+23)=6),JunMin1+23,\"\"))","v":"2019-06-18"},{"$f":"IF(DAY(JunMin1)=1,IF(AND(YEAR(JunMin1+17)=TahunKalender,MONTH(JunMin1+17)=6),JunMin1+17,\"\"),IF(AND(YEAR(JunMin1+24)=TahunKalender,MONTH(JunMin1+24)=6),JunMin1+24,\"\"))","v":"2019-06-19"},{"$f":"IF(DAY(JunMin1)=1,IF(AND(YEAR(JunMin1+18)=TahunKalender,MONTH(JunMin1+18)=6),JunMin1+18,\"\"),IF(AND(YEAR(JunMin1+25)=TahunKalender,MONTH(JunMin1+25)=6),JunMin1+25,\"\"))","v":"2019-06-20"},{"$f":"IF(DAY(JunMin1)=1,IF(AND(YEAR(JunMin1+19)=TahunKalender,MONTH(JunMin1+19)=6),JunMin1+19,\"\"),IF(AND(YEAR(JunMin1+26)=TahunKalender,MONTH(JunMin1+26)=6),JunMin1+26,\"\"))","v":"2019-06-21"},{"$f":"IF(DAY(JunMin1)=1,IF(AND(YEAR(JunMin1+20)=TahunKalender,MONTH(JunMin1+20)=6),JunMin1+20,\"\"),IF(AND(YEAR(JunMin1+27)=TahunKalender,MONTH(JunMin1+27)=6),JunMin1+27,\"\"))","v":"2019-06-22"},{"$f":"IF(DAY(JunMin1)=1,IF(AND(YEAR(JunMin1+21)=TahunKalender,MONTH(JunMin1+21)=6),JunMin1+21,\"\"),IF(AND(YEAR(JunMin1+28)=TahunKalender,MONTH(JunMin1+28)=6),JunMin1+28,\"\"))","v":"2019-06-23"},null,null,{"$f":"IF(DAY(JulMin1)=1,IF(AND(YEAR(JulMin1+15)=TahunKalender,MONTH(JulMin1+15)=7),JulMin1+15,\"\"),IF(AND(YEAR(JulMin1+22)=TahunKalender,MONTH(JulMin1+22)=7),JulMin1+22,\"\"))","v":"2019-07-22"},{"$f":"IF(DAY(JulMin1)=1,IF(AND(YEAR(JulMin1+16)=TahunKalender,MONTH(JulMin1+16)=7),JulMin1+16,\"\"),IF(AND(YEAR(JulMin1+23)=TahunKalender,MONTH(JulMin1+23)=7),JulMin1+23,\"\"))","v":"2019-07-23"},{"$f":"IF(DAY(JulMin1)=1,IF(AND(YEAR(JulMin1+17)=TahunKalender,MONTH(JulMin1+17)=7),JulMin1+17,\"\"),IF(AND(YEAR(JulMin1+24)=TahunKalender,MONTH(JulMin1+24)=7),JulMin1+24,\"\"))","v":"2019-07-24"},{"$f":"IF(DAY(JulMin1)=1,IF(AND(YEAR(JulMin1+18)=TahunKalender,MONTH(JulMin1+18)=7),JulMin1+18,\"\"),IF(AND(YEAR(JulMin1+25)=TahunKalender,MONTH(JulMin1+25)=7),JulMin1+25,\"\"))","v":"2019-07-25"},{"$f":"IF(DAY(JulMin1)=1,IF(AND(YEAR(JulMin1+19)=TahunKalender,MONTH(JulMin1+19)=7),JulMin1+19,\"\"),IF(AND(YEAR(JulMin1+26)=TahunKalender,MONTH(JulMin1+26)=7),JulMin1+26,\"\"))","v":"2019-07-26"},{"$f":"IF(DAY(JulMin1)=1,IF(AND(YEAR(JulMin1+20)=TahunKalender,MONTH(JulMin1+20)=7),JulMin1+20,\"\"),IF(AND(YEAR(JulMin1+27)=TahunKalender,MONTH(JulMin1+27)=7),JulMin1+27,\"\"))","v":"2019-07-27"},{"$f":"IF(DAY(JulMin1)=1,IF(AND(YEAR(JulMin1+21)=TahunKalender,MONTH(JulMin1+21)=7),JulMin1+21,\"\"),IF(AND(YEAR(JulMin1+28)=TahunKalender,MONTH(JulMin1+28)=7),JulMin1+28,\"\"))","v":"2019-07-28"},null,null,{"$f":"IF(DAY(AguMin1)=1,IF(AND(YEAR(AguMin1+15)=TahunKalender,MONTH(AguMin1+15)=8),AguMin1+15,\"\"),IF(AND(YEAR(AguMin1+22)=TahunKalender,MONTH(AguMin1+22)=8),AguMin1+22,\"\"))","v":"2019-08-19"},{"$f":"IF(DAY(AguMin1)=1,IF(AND(YEAR(AguMin1+16)=TahunKalender,MONTH(AguMin1+16)=8),AguMin1+16,\"\"),IF(AND(YEAR(AguMin1+23)=TahunKalender,MONTH(AguMin1+23)=8),AguMin1+23,\"\"))","v":"2019-08-20"},{"$f":"IF(DAY(AguMin1)=1,IF(AND(YEAR(AguMin1+17)=TahunKalender,MONTH(AguMin1+17)=8),AguMin1+17,\"\"),IF(AND(YEAR(AguMin1+24)=TahunKalender,MONTH(AguMin1+24)=8),AguMin1+24,\"\"))","v":"2019-08-21"},{"$f":"IF(DAY(AguMin1)=1,IF(AND(YEAR(AguMin1+18)=TahunKalender,MONTH(AguMin1+18)=8),AguMin1+18,\"\"),IF(AND(YEAR(AguMin1+25)=TahunKalender,MONTH(AguMin1+25)=8),AguMin1+25,\"\"))","v":"2019-08-22"},{"$f":"IF(DAY(AguMin1)=1,IF(AND(YEAR(AguMin1+19)=TahunKalender,MONTH(AguMin1+19)=8),AguMin1+19,\"\"),IF(AND(YEAR(AguMin1+26)=TahunKalender,MONTH(AguMin1+26)=8),AguMin1+26,\"\"))","v":"2019-08-23"},{"$f":"IF(DAY(AguMin1)=1,IF(AND(YEAR(AguMin1+20)=TahunKalender,MONTH(AguMin1+20)=8),AguMin1+20,\"\"),IF(AND(YEAR(AguMin1+27)=TahunKalender,MONTH(AguMin1+27)=8),AguMin1+27,\"\"))","v":"2019-08-24"},{"$f":"IF(DAY(AguMin1)=1,IF(AND(YEAR(AguMin1+21)=TahunKalender,MONTH(AguMin1+21)=8),AguMin1+21,\"\"),IF(AND(YEAR(AguMin1+28)=TahunKalender,MONTH(AguMin1+28)=8),AguMin1+28,\"\"))","v":"2019-08-25"}]
[null,null,{"$f":"IF(DAY(MeiMin1)=1,IF(AND(YEAR(MeiMin1+22)=TahunKalender,MONTH(MeiMin1+22)=5),MeiMin1+22,\"\"),IF(AND(YEAR(MeiMin1+29)=TahunKalender,MONTH(MeiMin1+29)=5),MeiMin1+29,\"\"))","v":"2019-05-27"},{"$f":"IF(DAY(MeiMin1)=1,IF(AND(YEAR(MeiMin1+23)=TahunKalender,MONTH(MeiMin1+23)=5),MeiMin1+23,\"\"),IF(AND(YEAR(MeiMin1+30)=TahunKalender,MONTH(MeiMin1+30)=5),MeiMin1+30,\"\"))","v":"2019-05-28"},{"$f":"IF(DAY(MeiMin1)=1,IF(AND(YEAR(MeiMin1+24)=TahunKalender,MONTH(MeiMin1+24)=5),MeiMin1+24,\"\"),IF(AND(YEAR(MeiMin1+31)=TahunKalender,MONTH(MeiMin1+31)=5),MeiMin1+31,\"\"))","v":"2019-05-29"},{"$f":"IF(DAY(MeiMin1)=1,IF(AND(YEAR(MeiMin1+25)=TahunKalender,MONTH(MeiMin1+25)=5),MeiMin1+25,\"\"),IF(AND(YEAR(MeiMin1+32)=TahunKalender,MONTH(MeiMin1+32)=5),MeiMin1+32,\"\"))","v":"2019-05-30"},{"$f":"IF(DAY(MeiMin1)=1,IF(AND(YEAR(MeiMin1+26)=TahunKalender,MONTH(MeiMin1+26)=5),MeiMin1+26,\"\"),IF(AND(YEAR(MeiMin1+33)=TahunKalender,MONTH(MeiMin1+33)=5),MeiMin1+33,\"\"))","v":"2019-05-31"},{"$f":"IF(DAY(MeiMin1)=1,IF(AND(YEAR(MeiMin1+27)=TahunKalender,MONTH(MeiMin1+27)=5),MeiMin1+27,\"\"),IF(AND(YEAR(MeiMin1+34)=TahunKalender,MONTH(MeiMin1+34)=5),MeiMin1+34,\"\"))","v":""},{"$f":"IF(DAY(MeiMin1)=1,IF(AND(YEAR(MeiMin1+28)=TahunKalender,MONTH(MeiMin1+28)=5),MeiMin1+28,\"\"),IF(AND(YEAR(MeiMin1+35)=TahunKalender,MONTH(MeiMin1+35)=5),MeiMin1+35,\"\"))","v":""},null,null,{"$f":"IF(DAY(JunMin1)=1,IF(AND(YEAR(JunMin1+22)=TahunKalender,MONTH(JunMin1+22)=6),JunMin1+22,\"\"),IF(AND(YEAR(JunMin1+29)=TahunKalender,MONTH(JunMin1+29)=6),JunMin1+29,\"\"))","v":"2019-06-24"},{"$f":"IF(DAY(JunMin1)=1,IF(AND(YEAR(JunMin1+23)=TahunKalender,MONTH(JunMin1+23)=6),JunMin1+23,\"\"),IF(AND(YEAR(JunMin1+30)=TahunKalender,MONTH(JunMin1+30)=6),JunMin1+30,\"\"))","v":"2019-06-25"},{"$f":"IF(DAY(JunMin1)=1,IF(AND(YEAR(JunMin1+24)=TahunKalender,MONTH(JunMin1+24)=6),JunMin1+24,\"\"),IF(AND(YEAR(JunMin1+31)=TahunKalender,MONTH(JunMin1+31)=6),JunMin1+31,\"\"))","v":"2019-06-26"},{"$f":"IF(DAY(JunMin1)=1,IF(AND(YEAR(JunMin1+25)=TahunKalender,MONTH(JunMin1+25)=6),JunMin1+25,\"\"),IF(AND(YEAR(JunMin1+32)=TahunKalender,MONTH(JunMin1+32)=6),JunMin1+32,\"\"))","v":"2019-06-27"},{"$f":"IF(DAY(JunMin1)=1,IF(AND(YEAR(JunMin1+26)=TahunKalender,MONTH(JunMin1+26)=6),JunMin1+26,\"\"),IF(AND(YEAR(JunMin1+33)=TahunKalender,MONTH(JunMin1+33)=6),JunMin1+33,\"\"))","v":"2019-06-28"},{"$f":"IF(DAY(JunMin1)=1,IF(AND(YEAR(JunMin1+27)=TahunKalender,MONTH(JunMin1+27)=6),JunMin1+27,\"\"),IF(AND(YEAR(JunMin1+34)=TahunKalender,MONTH(JunMin1+34)=6),JunMin1+34,\"\"))","v":"2019-06-29"},{"$f":"IF(DAY(JunMin1)=1,IF(AND(YEAR(JunMin1+28)=TahunKalender,MONTH(JunMin1+28)=6),JunMin1+28,\"\"),IF(AND(YEAR(JunMin1+35)=TahunKalender,MONTH(JunMin1+35)=6),JunMin1+35,\"\"))","v":"2019-06-30"},null,null,{"$f":"IF(DAY(JulMin1)=1,IF(AND(YEAR(JulMin1+22)=TahunKalender,MONTH(JulMin1+22)=7),JulMin1+22,\"\"),IF(AND(YEAR(JulMin1+29)=TahunKalender,MONTH(JulMin1+29)=7),JulMin1+29,\"\"))","v":"2019-07-29"},{"$f":"IF(DAY(JulMin1)=1,IF(AND(YEAR(JulMin1+23)=TahunKalender,MONTH(JulMin1+23)=7),JulMin1+23,\"\"),IF(AND(YEAR(JulMin1+30)=TahunKalender,MONTH(JulMin1+30)=7),JulMin1+30,\"\"))","v":"2019-07-30"},{"$f":"IF(DAY(JulMin1)=1,IF(AND(YEAR(JulMin1+24)=TahunKalender,MONTH(JulMin1+24)=7),JulMin1+24,\"\"),IF(AND(YEAR(JulMin1+31)=TahunKalender,MONTH(JulMin1+31)=7),JulMin1+31,\"\"))","v":"2019-07-31"},{"$f":"IF(DAY(JulMin1)=1,IF(AND(YEAR(JulMin1+25)=TahunKalender,MONTH(JulMin1+25)=7),JulMin1+25,\"\"),IF(AND(YEAR(JulMin1+32)=TahunKalender,MONTH(JulMin1+32)=7),JulMin1+32,\"\"))","v":""},{"$f":"IF(DAY(JulMin1)=1,IF(AND(YEAR(JulMin1+26)=TahunKalender,MONTH(JulMin1+26)=7),JulMin1+26,\"\"),IF(AND(YEAR(JulMin1+33)=TahunKalender,MONTH(JulMin1+33)=7),JulMin1+33,\"\"))","v":""},{"$f":"IF(DAY(JulMin1)=1,IF(AND(YEAR(JulMin1+27)=TahunKalender,MONTH(JulMin1+27)=7),JulMin1+27,\"\"),IF(AND(YEAR(JulMin1+34)=TahunKalender,MONTH(JulMin1+34)=7),JulMin1+34,\"\"))","v":""},{"$f":"IF(DAY(JulMin1)=1,IF(AND(YEAR(JulMin1+28)=TahunKalender,MONTH(JulMin1+28)=7),JulMin1+28,\"\"),IF(AND(YEAR(JulMin1+35)=TahunKalender,MONTH(JulMin1+35)=7),JulMin1+35,\"\"))","v":""},null,null,{"$f":"IF(DAY(AguMin1)=1,IF(AND(YEAR(AguMin1+22)=TahunKalender,MONTH(AguMin1+22)=8),AguMin1+22,\"\"),IF(AND(YEAR(AguMin1+29)=TahunKalender,MONTH(AguMin1+29)=8),AguMin1+29,\"\"))","v":"2019-08-26"},{"$f":"IF(DAY(AguMin1)=1,IF(AND(YEAR(AguMin1+23)=TahunKalender,MONTH(AguMin1+23)=8),AguMin1+23,\"\"),IF(AND(YEAR(AguMin1+30)=TahunKalender,MONTH(AguMin1+30)=8),AguMin1+30,\"\"))","v":"2019-08-27"},{"$f":"IF(DAY(AguMin1)=1,IF(AND(YEAR(AguMin1+24)=TahunKalender,MONTH(AguMin1+24)=8),AguMin1+24,\"\"),IF(AND(YEAR(AguMin1+31)=TahunKalender,MONTH(AguMin1+31)=8),AguMin1+31,\"\"))","v":"2019-08-28"},{"$f":"IF(DAY(AguMin1)=1,IF(AND(YEAR(AguMin1+25)=TahunKalender,MONTH(AguMin1+25)=8),AguMin1+25,\"\"),IF(AND(YEAR(AguMin1+32)=TahunKalender,MONTH(AguMin1+32)=8),AguMin1+32,\"\"))","v":"2019-08-29"},{"$f":"IF(DAY(AguMin1)=1,IF(AND(YEAR(AguMin1+26)=TahunKalender,MONTH(AguMin1+26)=8),AguMin1+26,\"\"),IF(AND(YEAR(AguMin1+33)=TahunKalender,MONTH(AguMin1+33)=8),AguMin1+33,\"\"))","v":"2019-08-30"},{"$f":"IF(DAY(AguMin1)=1,IF(AND(YEAR(AguMin1+27)=TahunKalender,MONTH(AguMin1+27)=8),AguMin1+27,\"\"),IF(AND(YEAR(AguMin1+34)=TahunKalender,MONTH(AguMin1+34)=8),AguMin1+34,\"\"))","v":"2019-08-31"},{"$f":"IF(DAY(AguMin1)=1,IF(AND(YEAR(AguMin1+28)=TahunKalender,MONTH(AguMin1+28)=8),AguMin1+28,\"\"),IF(AND(YEAR(AguMin1+35)=TahunKalender,MONTH(AguMin1+35)=8),AguMin1+35,\"\"))","v":""}]
[null,null,{"$f":"IF(DAY(MeiMin1)=1,IF(AND(YEAR(MeiMin1+29)=TahunKalender,MONTH(MeiMin1+29)=5),MeiMin1+29,\"\"),IF(AND(YEAR(MeiMin1+36)=TahunKalender,MONTH(MeiMin1+36)=5),MeiMin1+36,\"\"))","v":""},{"$f":"IF(DAY(MeiMin1)=1,IF(AND(YEAR(MeiMin1+30)=TahunKalender,MONTH(MeiMin1+30)=5),MeiMin1+30,\"\"),IF(AND(YEAR(MeiMin1+37)=TahunKalender,MONTH(MeiMin1+37)=5),MeiMin1+37,\"\"))","v":""},{"$f":"IF(DAY(MeiMin1)=1,IF(AND(YEAR(MeiMin1+31)=TahunKalender,MONTH(MeiMin1+31)=5),MeiMin1+31,\"\"),IF(AND(YEAR(MeiMin1+38)=TahunKalender,MONTH(MeiMin1+38)=5),MeiMin1+38,\"\"))","v":""},{"$f":"IF(DAY(MeiMin1)=1,IF(AND(YEAR(MeiMin1+32)=TahunKalender,MONTH(MeiMin1+32)=5),MeiMin1+32,\"\"),IF(AND(YEAR(MeiMin1+39)=TahunKalender,MONTH(MeiMin1+39)=5),MeiMin1+39,\"\"))","v":""},{"$f":"IF(DAY(MeiMin1)=1,IF(AND(YEAR(MeiMin1+33)=TahunKalender,MONTH(MeiMin1+33)=5),MeiMin1+33,\"\"),IF(AND(YEAR(MeiMin1+40)=TahunKalender,MONTH(MeiMin1+40)=5),MeiMin1+40,\"\"))","v":""},{"$f":"IF(DAY(MeiMin1)=1,IF(AND(YEAR(MeiMin1+34)=TahunKalender,MONTH(MeiMin1+34)=5),MeiMin1+34,\"\"),IF(AND(YEAR(MeiMin1+41)=TahunKalender,MONTH(MeiMin1+41)=5),MeiMin1+41,\"\"))","v":""},{"$f":"IF(DAY(MeiMin1)=1,IF(AND(YEAR(MeiMin1+35)=TahunKalender,MONTH(MeiMin1+35)=5),MeiMin1+35,\"\"),IF(AND(YEAR(MeiMin1+42)=TahunKalender,MONTH(MeiMin1+42)=5),MeiMin1+42,\"\"))","v":""},null,null,{"$f":"IF(DAY(JunMin1)=1,IF(AND(YEAR(JunMin1+29)=TahunKalender,MONTH(JunMin1+29)=6),JunMin1+29,\"\"),IF(AND(YEAR(JunMin1+36)=TahunKalender,MONTH(JunMin1+36)=6),JunMin1+36,\"\"))","v":""},{"$f":"IF(DAY(JunMin1)=1,IF(AND(YEAR(JunMin1+30)=TahunKalender,MONTH(JunMin1+30)=6),JunMin1+30,\"\"),IF(AND(YEAR(JunMin1+37)=TahunKalender,MONTH(JunMin1+37)=6),JunMin1+37,\"\"))","v":""},{"$f":"IF(DAY(JunMin1)=1,IF(AND(YEAR(JunMin1+31)=TahunKalender,MONTH(JunMin1+31)=6),JunMin1+31,\"\"),IF(AND(YEAR(JunMin1+38)=TahunKalender,MONTH(JunMin1+38)=6),JunMin1+38,\"\"))","v":""},{"$f":"IF(DAY(JunMin1)=1,IF(AND(YEAR(JunMin1+32)=TahunKalender,MONTH(JunMin1+32)=6),JunMin1+32,\"\"),IF(AND(YEAR(JunMin1+39)=TahunKalender,MONTH(JunMin1+39)=6),JunMin1+39,\"\"))","v":""},{"$f":"IF(DAY(JunMin1)=1,IF(AND(YEAR(JunMin1+33)=TahunKalender,MONTH(JunMin1+33)=6),JunMin1+33,\"\"),IF(AND(YEAR(JunMin1+40)=TahunKalender,MONTH(JunMin1+40)=6),JunMin1+40,\"\"))","v":""},{"$f":"IF(DAY(JunMin1)=1,IF(AND(YEAR(JunMin1+34)=TahunKalender,MONTH(JunMin1+34)=6),JunMin1+34,\"\"),IF(AND(YEAR(JunMin1+41)=TahunKalender,MONTH(JunMin1+41)=6),JunMin1+41,\"\"))","v":""},{"$f":"IF(DAY(JunMin1)=1,IF(AND(YEAR(JunMin1+35)=TahunKalender,MONTH(JunMin1+35)=6),JunMin1+35,\"\"),IF(AND(YEAR(JunMin1+42)=TahunKalender,MONTH(JunMin1+42)=6),JunMin1+42,\"\"))","v":""},null,null,{"$f":"IF(DAY(JulMin1)=1,IF(AND(YEAR(JulMin1+29)=TahunKalender,MONTH(JulMin1+29)=7),JulMin1+29,\"\"),IF(AND(YEAR(JulMin1+36)=TahunKalender,MONTH(JulMin1+36)=7),JulMin1+36,\"\"))","v":""},{"$f":"IF(DAY(JulMin1)=1,IF(AND(YEAR(JulMin1+30)=TahunKalender,MONTH(JulMin1+30)=7),JulMin1+30,\"\"),IF(AND(YEAR(JulMin1+37)=TahunKalender,MONTH(JulMin1+37)=7),JulMin1+37,\"\"))","v":""},{"$f":"IF(DAY(JulMin1)=1,IF(AND(YEAR(JulMin1+31)=TahunKalender,MONTH(JulMin1+31)=7),JulMin1+31,\"\"),IF(AND(YEAR(JulMin1+38)=TahunKalender,MONTH(JulMin1+38)=7),JulMin1+38,\"\"))","v":""},{"$f":"IF(DAY(JulMin1)=1,IF(AND(YEAR(JulMin1+32)=TahunKalender,MONTH(JulMin1+32)=7),JulMin1+32,\"\"),IF(AND(YEAR(JulMin1+39)=TahunKalender,MONTH(JulMin1+39)=7),JulMin1+39,\"\"))","v":""},{"$f":"IF(DAY(JulMin1)=1,IF(AND(YEAR(JulMin1+33)=TahunKalender,MONTH(JulMin1+33)=7),JulMin1+33,\"\"),IF(AND(YEAR(JulMin1+40)=TahunKalender,MONTH(JulMin1+40)=7),JulMin1+40,\"\"))","v":""},{"$f":"IF(DAY(JulMin1)=1,IF(AND(YEAR(JulMin1+34)=TahunKalender,MONTH(JulMin1+34)=7),JulMin1+34,\"\"),IF(AND(YEAR(JulMin1+41)=TahunKalender,MONTH(JulMin1+41)=7),JulMin1+41,\"\"))","v":""},{"$f":"IF(DAY(JulMin1)=1,IF(AND(YEAR(JulMin1+35)=TahunKalender,MONTH(JulMin1+35)=7),JulMin1+35,\"\"),IF(AND(YEAR(JulMin1+42)=TahunKalender,MONTH(JulMin1+42)=7),JulMin1+42,\"\"))","v":""},null,null,{"$f":"IF(DAY(AguMin1)=1,IF(AND(YEAR(AguMin1+29)=TahunKalender,MONTH(AguMin1+29)=8),AguMin1+29,\"\"),IF(AND(YEAR(AguMin1+36)=TahunKalender,MONTH(AguMin1+36)=8),AguMin1+36,\"\"))","v":""},{"$f":"IF(DAY(AguMin1)=1,IF(AND(YEAR(AguMin1+30)=TahunKalender,MONTH(AguMin1+30)=8),AguMin1+30,\"\"),IF(AND(YEAR(AguMin1+37)=TahunKalender,MONTH(AguMin1+37)=8),AguMin1+37,\"\"))","v":""},{"$f":"IF(DAY(AguMin1)=1,IF(AND(YEAR(AguMin1+31)=TahunKalender,MONTH(AguMin1+31)=8),AguMin1+31,\"\"),IF(AND(YEAR(AguMin1+38)=TahunKalender,MONTH(AguMin1+38)=8),AguMin1+38,\"\"))","v":""},{"$f":"IF(DAY(AguMin1)=1,IF(AND(YEAR(AguMin1+32)=TahunKalender,MONTH(AguMin1+32)=8),AguMin1+32,\"\"),IF(AND(YEAR(AguMin1+39)=TahunKalender,MONTH(AguMin1+39)=8),AguMin1+39,\"\"))","v":""},{"$f":"IF(DAY(AguMin1)=1,IF(AND(YEAR(AguMin1+33)=TahunKalender,MONTH(AguMin1+33)=8),AguMin1+33,\"\"),IF(AND(YEAR(AguMin1+40)=TahunKalender,MONTH(AguMin1+40)=8),AguMin1+40,\"\"))","v":""},{"$f":"IF(DAY(AguMin1)=1,IF(AND(YEAR(AguMin1+34)=TahunKalender,MONTH(AguMin1+34)=8),AguMin1+34,\"\"),IF(AND(YEAR(AguMin1+41)=TahunKalender,MONTH(AguMin1+41)=8),AguMin1+41,\"\"))","v":""},{"$f":"IF(DAY(AguMin1)=1,IF(AND(YEAR(AguMin1+35)=TahunKalender,MONTH(AguMin1+35)=8),AguMin1+35,\"\"),IF(AND(YEAR(AguMin1+42)=TahunKalender,MONTH(AguMin1+42)=8),AguMin1+42,\"\"))","v":""}]
["Kalender September ada di sel C43 hingga I49, kalender Oktober di sel L43 hingga R49, kalender November di sel U43 hingga AA49, dan kalender Desember di sel AD43 hingga AJ49."]
["Nama-nama bulan ada di baris ini. Label September ada di sel C42, label Oktober di sel L42, label November di sel U42, dan label Desember di sel AD42.",null,{"$f":"DATE(TahunKalender,9,1)","v":"2019-09-01"},{"$nulls":8},{"$f":"DATE(TahunKalender,10,1)","v":"2019-10-01"},{"$nulls":8},{"$f":"DATE(TahunKalender,11,1)","v":"2019-11-01"},{"$nulls":8},{"$f":"DATE(TahunKalender,12,1)","v":"2019-12-01"}]
["Nama-nama hari ada di baris ini. Nama hari bulan September ada di sel C43 hingga I43, hari bulan Oktober di sel L43 hingga R43, hari bulan November di sel U43 hingga AA43, dan hari bulan Desember di sel AD43 hingga AJ43.",null,"Sn","Sl","Rb","Km","Jm","Sb","Mn",null,null,"Sn","Sl","Rb","Km","Jm","Sb","Mn",null,null,"Sn","Sl","Rb","Km","Jm","Sb","Mn",null,null,"Sn","Sl","Rb","Km","Jm","Sb","Mn"]
["Tanggal otomatis diperbarui di baris ini. Tanggal bulan September ada di sel sebelah kanan, sel C44 hingga I49, tanggal Oktober di sel L44 hingga R49, tanggal November di sel U44 hingga AA49, dan tanggal Desember di sel AD44 hingga AJ49.",null,{"$f":"IF(DAY(SepMin1)=1,\"\",IF(AND(YEAR(SepMin1+1)=TahunKalender,MONTH(SepMin1+1)=9),SepMin1+1,\"\"))","v":""},{"$f":"IF(DAY(SepMin1)=1,\"\",IF(AND(YEAR(SepMin1+2)=TahunKalender,MONTH(SepMin1+2)=9),SepMin1+2,\"\"))","v":""},{"$f":"IF(DAY(SepMin1)=1,\"\",IF(AND(YEAR(SepMin1+3)=TahunKalender,MONTH(SepMin1+3)=9),SepMin1+3,\"\"))","v":""},{"$f":"IF(DAY(SepMin1)=1,\"\",IF(AND(YEAR(SepMin1+4)=TahunKalender,MONTH(SepMin1+4)=9),SepMin1+4,\"\"))","v":""},{"$f":"IF(DAY(SepMin1)=1,\"\",IF(AND(YEAR(SepMin1+5)=TahunKalender,MONTH(SepMin1+5)=9),SepMin1+5,\"\"))","v":""},{"$f":"IF(DAY(SepMin1)=1,\"\",IF(AND(YEAR(SepMin1+6)=TahunKalender,MONTH(SepMin1+6)=9),SepMin1+6,\"\"))","v":""},{"$f":"IF(DAY(SepMin1)=1,IF(AND(YEAR(SepMin1)=TahunKalender,MONTH(SepMin1)=9),SepMin1,\"\"),IF(AND(YEAR(SepMin1+7)=TahunKalender,MONTH(SepMin1+7)=9),SepMin1+7,\"\"))","v":"2019-09-01"},null,null,{"$f":"IF(DAY(OktMin1)=1,\"\",IF(AND(YEAR(OktMin1+1)=TahunKalender,MONTH(OktMin1+1)=10),OktMin1+1,\"\"))","v":""},{"$f":"IF(DAY(OktMin1)=1,\"\",IF(AND(YEAR(OktMin1+2)=TahunKalender,MONTH(OktMin1+2)=10),OktMin1+2,\"\"))","v":"2019-10-01"},{"$f":"IF(DAY(OktMin1)=1,\"\",IF(AND(YEAR(OktMin1+3)=TahunKalender,MONTH(OktMin1+3)=10),OktMin1+3,\"\"))","v":"2019-10-02"},{"$f":"IF(DAY(OktMin1)=1,\"\",IF(AND(YEAR(OktMin1+4)=TahunKalender,MONTH(OktMin1+4)=10),OktMin1+4,\"\"))","v":"2019-10-03"},{"$f":"IF(DAY(OktMin1)=1,\"\",IF(AND(YEAR(OktMin1+5)=TahunKalender,MONTH(OktMin1+5)=10),OktMin1+5,\"\"))","v":"2019-10-04"},{"$f":"IF(DAY(OktMin1)=1,\"\",IF(AND(YEAR(OktMin1+6)=TahunKalender,MONTH(OktMin1+6)=10),OktMin1+6,\"\"))","v":"2019-10-05"},{"$f":"IF(DAY(OktMin1)=1,IF(AND(YEAR(OktMin1)=TahunKalender,MONTH(OktMin1)=10),OktMin1,\"\"),IF(AND(YEAR(OktMin1+7)=TahunKalender,MONTH(OktMin1+7)=10),OktMin1+7,\"\"))","v":"2019-10-06"},null,null,{"$f":"IF(DAY(NovMin1)=1,\"\",IF(AND(YEAR(NovMin1+1)=TahunKalender,MONTH(NovMin1+1)=11),NovMin1+1,\"\"))","v":""},{"$f":"IF(DAY(NovMin1)=1,\"\",IF(AND(YEAR(NovMin1+2)=TahunKalender,MONTH(NovMin1+2)=11),NovMin1+2,\"\"))","v":""},{"$f":"IF(DAY(NovMin1)=1,\"\",IF(AND(YEAR(NovMin1+3)=TahunKalender,MONTH(NovMin1+3)=11),NovMin1+3,\"\"))","v":""},{"$f":"IF(DAY(NovMin1)=1,\"\",IF(AND(YEAR(NovMin1+4)=TahunKalender,MONTH(NovMin1+4)=11),NovMin1+4,\"\"))","v":""},{"$f":"IF(DAY(NovMin1)=1,\"\",IF(AND(YEAR(NovMin1+5)=TahunKalender,MONTH(NovMin1+5)=11),NovMin1+5,\"\"))","v":"2019-11-01"},{"$f":"IF(DAY(NovMin1)=1,\"\",IF(AND(YEAR(NovMin1+6)=TahunKalender,MONTH(NovMin1+6)=11),NovMin1+6,\"\"))","v":"2019-11-02"},{"$f":"IF(DAY(NovMin1)=1,IF(AND(YEAR(NovMin1)=TahunKalender,MONTH(NovMin1)=11),NovMin1,\"\"),IF(AND(YEAR(NovMin1+7)=TahunKalender,MONTH(NovMin1+7)=11),NovMin1+7,\"\"))","v":"2019-11-03"},null,null,{"$f":"IF(DAY(DesMin1)=1,\"\",IF(AND(YEAR(DesMin1+1)=TahunKalender,MONTH(DesMin1+1)=12),DesMin1+1,\"\"))","v":""},{"$f":"IF(DAY(DesMin1)=1,\"\",IF(AND(YEAR(DesMin1+2)=TahunKalender,MONTH(DesMin1+2)=12),DesMin1+2,\"\"))","v":""},{"$f":"IF(DAY(DesMin1)=1,\"\",IF(AND(YEAR(DesMin1+3)=TahunKalender,MONTH(DesMin1+3)=12),DesMin1+3,\"\"))","v":""},{"$f":"IF(DAY(DesMin1)=1,\"\",IF(AND(YEAR(DesMin1+4)=TahunKalender,MONTH(DesMin1+4)=12),DesMin1+4,\"\"))","v":""},{"$f":"IF(DAY(DesMin1)=1,\"\",IF(AND(YEAR(DesMin1+5)=TahunKalender,MONTH(DesMin1+5)=12),DesMin1+5,\"\"))","v":""},{"$f":"IF(DAY(DesMin1)=1,\"\",IF(AND(YEAR(DesMin1+6)=TahunKalender,MONTH(DesMin1+6)=12),DesMin1+6,\"\"))","v":""},{"$f":"IF(DAY(DesMin1)=1,IF(AND(YEAR(DesMin1)=TahunKalender,MONTH(DesMin1)=12),DesMin1,\"\"),IF(AND(YEAR(DesMin1+7)=TahunKalender,MONTH(DesMin1+7)=12),DesMin1+7,\"\"))","v":"2019-12-01"}]
[null,null,{"$f":"IF(DAY(SepMin1)=1,IF(AND(YEAR(SepMin1+1)=TahunKalender,MONTH(SepMin1+1)=9),SepMin1+1,\"\"),IF(AND(YEAR(SepMin1+8)=TahunKalender,MONTH(SepMin1+8)=9),SepMin1+8,\"\"))","v":"2019-09-02"},{"$f":"IF(DAY(SepMin1)=1,IF(AND(YEAR(SepMin1+2)=TahunKalender,MONTH(SepMin1+2)=9),SepMin1+2,\"\"),IF(AND(YEAR(SepMin1+9)=TahunKalender,MONTH(SepMin1+9)=9),SepMin1+9,\"\"))","v":"2019-09-03"},{"$f":"IF(DAY(SepMin1)=1,IF(AND(YEAR(SepMin1+3)=TahunKalender,MONTH(SepMin1+3)=9),SepMin1+3,\"\"),IF(AND(YEAR(SepMin1+10)=TahunKalender,MONTH(SepMin1+10)=9),SepMin1+10,\"\"))","v":"2019-09-04"},{"$f":"IF(DAY(SepMin1)=1,IF(AND(YEAR(SepMin1+4)=TahunKalender,MONTH(SepMin1+4)=9),SepMin1+4,\"\"),IF(AND(YEAR(SepMin1+11)=TahunKalender,MONTH(SepMin1+11)=9),SepMin1+11,\"\"))","v":"2019-09-05"},{"$f":"IF(DAY(SepMin1)=1,IF(AND(YEAR(SepMin1+5)=TahunKalender,MONTH(SepMin1+5)=9),SepMin1+5,\"\"),IF(AND(YEAR(SepMin1+12)=TahunKalender,MONTH(SepMin1+12)=9),SepMin1+12,\"\"))","v":"2019-09-06"},{"$f":"IF(DAY(SepMin1)=1,IF(AND(YEAR(SepMin1+6)=TahunKalender,MONTH(SepMin1+6)=9),SepMin1+6,\"\"),IF(AND(YEAR(SepMin1+13)=TahunKalender,MONTH(SepMin1+13)=9),SepMin1+13,\"\"))","v":"2019-09-07"},{"$f":"IF(DAY(SepMin1)=1,IF(AND(YEAR(SepMin1+7)=TahunKalender,MONTH(SepMin1+7)=9),SepMin1+7,\"\"),IF(AND(YEAR(SepMin1+14)=TahunKalender,MONTH(SepMin1+14)=9),SepMin1+14,\"\"))","v":"2019-09-08"},null,null,{"$f":"IF(DAY(OktMin1)=1,IF(AND(YEAR(OktMin1+1)=TahunKalender,MONTH(OktMin1+1)=10),OktMin1+1,\"\"),IF(AND(YEAR(OktMin1+8)=TahunKalender,MONTH(OktMin1+8)=10),OktMin1+8,\"\"))","v":"2019-10-07"},{"$f":"IF(DAY(OktMin1)=1,IF(AND(YEAR(OktMin1+2)=TahunKalender,MONTH(OktMin1+2)=10),OktMin1+2,\"\"),IF(AND(YEAR(OktMin1+9)=TahunKalender,MONTH(OktMin1+9)=10),OktMin1+9,\"\"))","v":"2019-10-08"},{"$f":"IF(DAY(OktMin1)=1,IF(AND(YEAR(OktMin1+3)=TahunKalender,MONTH(OktMin1+3)=10),OktMin1+3,\"\"),IF(AND(YEAR(OktMin1+10)=TahunKalender,MONTH(OktMin1+10)=10),OktMin1+10,\"\"))","v":"2019-10-09"},{"$f":"IF(DAY(OktMin1)=1,IF(AND(YEAR(OktMin1+4)=TahunKalender,MONTH(OktMin1+4)=10),OktMin1+4,\"\"),IF(AND(YEAR(OktMin1+11)=TahunKalender,MONTH(OktMin1+11)=10),OktMin1+11,\"\"))","v":"2019-10-10"},{"$f":"IF(DAY(OktMin1)=1,IF(AND(YEAR(OktMin1+5)=TahunKalender,MONTH(OktMin1+5)=10),OktMin1+5,\"\"),IF(AND(YEAR(OktMin1+12)=TahunKalender,MONTH(OktMin1+12)=10),OktMin1+12,\"\"))","v":"2019-10-11"},{"$f":"IF(DAY(OktMin1)=1,IF(AND(YEAR(OktMin1+6)=TahunKalender,MONTH(OktMin1+6)=10),OktMin1+6,\"\"),IF(AND(YEAR(OktMin1+13)=TahunKalender,MONTH(OktMin1+13)=10),OktMin1+13,\"\"))","v":"2019-10-12"},{"$f":"IF(DAY(OktMin1)=1,IF(AND(YEAR(OktMin1+7)=TahunKalender,MONTH(OktMin1+7)=10),OktMin1+7,\"\"),IF(AND(YEAR(OktMin1+14)=TahunKalender,MONTH(OktMin1+14)=10),OktMin1+14,\"\"))","v":"2019-10-13"},null,null,{"$f":"IF(DAY(NovMin1)=1,IF(AND(YEAR(NovMin1+1)=TahunKalender,MONTH(NovMin1+1)=11),NovMin1+1,\"\"),IF(AND(YEAR(NovMin1+8)=TahunKalender,MONTH(NovMin1+8)=11),NovMin1+8,\"\"))","v":"2019-11-04"},{"$f":"IF(DAY(NovMin1)=1,IF(AND(YEAR(NovMin1+2)=TahunKalender,MONTH(NovMin1+2)=11),NovMin1+2,\"\"),IF(AND(YEAR(NovMin1+9)=TahunKalender,MONTH(NovMin1+9)=11),NovMin1+9,\"\"))","v":"2019-11-05"},{"$f":"IF(DAY(NovMin1)=1,IF(AND(YEAR(NovMin1+3)=TahunKalender,MONTH(NovMin1+3)=11),NovMin1+3,\"\"),IF(AND(YEAR(NovMin1+10)=TahunKalender,MONTH(NovMin1+10)=11),NovMin1+10,\"\"))","v":"2019-11-06"},{"$f":"IF(DAY(NovMin1)=1,IF(AND(YEAR(NovMin1+4)=TahunKalender,MONTH(NovMin1+4)=11),NovMin1+4,\"\"),IF(AND(YEAR(NovMin1+11)=TahunKalender,MONTH(NovMin1+11)=11),NovMin1+11,\"\"))","v":"2019-11-07"},{"$f":"IF(DAY(NovMin1)=1,IF(AND(YEAR(NovMin1+5)=TahunKalender,MONTH(NovMin1+5)=11),NovMin1+5,\"\"),IF(AND(YEAR(NovMin1+12)=TahunKalender,MONTH(NovMin1+12)=11),NovMin1+12,\"\"))","v":"2019-11-08"},{"$f":"IF(DAY(NovMin1)=1,IF(AND(YEAR(NovMin1+6)=TahunKalender,MONTH(NovMin1+6)=11),NovMin1+6,\"\"),IF(AND(YEAR(NovMin1+13)=TahunKalender,MONTH(NovMin1+13)=11),NovMin1+13,\"\"))","v":"2019-11-09"},{"$f":"IF(DAY(NovMin1)=1,IF(AND(YEAR(NovMin1+7)=TahunKalender,MONTH(NovMin1+7)=11),NovMin1+7,\"\"),IF(AND(YEAR(NovMin1+14)=TahunKalender,MONTH(NovMin1+14)=11),NovMin1+14,\"\"))","v":"2019-11-10"},null,null,{"$f":"IF(DAY(DesMin1)=1,IF(AND(YEAR(DesMin1+1)=TahunKalender,MONTH(DesMin1+1)=12),DesMin1+1,\"\"),IF(AND(YEAR(DesMin1+8)=TahunKalender,MONTH(DesMin1+8)=12),DesMin1+8,\"\"))","v":"2019-12-02"},{"$f":"IF(DAY(DesMin1)=1,IF(AND(YEAR(DesMin1+2)=TahunKalender,MONTH(DesMin1+2)=12),DesMin1+2,\"\"),IF(AND(YEAR(DesMin1+9)=TahunKalender,MONTH(DesMin1+9)=12),DesMin1+9,\"\"))","v":"2019-12-03"},{"$f":"IF(DAY(DesMin1)=1,IF(AND(YEAR(DesMin1+3)=TahunKalender,MONTH(DesMin1+3)=12),DesMin1+3,\"\"),IF(AND(YEAR(DesMin1+10)=TahunKalender,MONTH(DesMin1+10)=12),DesMin1+10,\"\"))","v":"2019-12-04"},{"$f":"IF(DAY(DesMin1)=1,IF(AND(YEAR(DesMin1+4)=TahunKalender,MONTH(DesMin1+4)=12),DesMin1+4,\"\"),IF(AND(YEAR(DesMin1+11)=TahunKalender,MONTH(DesMin1+11)=12),DesMin1+11,\"\"))","v":"2019-12-05"},{"$f":"IF(DAY(DesMin1)=1,IF(AND(YEAR(DesMin1+5)=TahunKalender,MONTH(DesMin1+5)=12),DesMin1+5,\"\"),IF(AND(YEAR(DesMin1+12)=TahunKalender,MONTH(DesMin1+12)=12),DesMin1+12,\"\"))","v":"2019-12-06"},{"$f":"IF(DAY(DesMin1)=1,IF(AND(YEAR(DesMin1+6)=TahunKalender,MONTH(DesMin1+6)=12),DesMin1+6,\"\"),IF(AND(YEAR(DesMin1+13)=TahunKalender,MONTH(DesMin1+13)=12),DesMin1+13,\"\"))","v":"2019-12-07"},{"$f":"IF(DAY(DesMin1)=1,IF(AND(YEAR(DesMin1+7)=TahunKalender,MONTH(DesMin1+7)=12),DesMin1+7,\"\"),IF(AND(YEAR(DesMin1+14)=TahunKalender,MONTH(DesMin1+14)=12),DesMin1+14,\"\"))","v":"2019-12-08"}]
[null,null,{"$f":"IF(DAY(SepMin1)=1,IF(AND(YEAR(SepMin1+8)=TahunKalender,MONTH(SepMin1+8)=9),SepMin1+8,\"\"),IF(AND(YEAR(SepMin1+15)=TahunKalender,MONTH(SepMin1+15)=9),SepMin1+15,\"\"))","v":"2019-09-09"},{"$f":"IF(DAY(SepMin1)=1,IF(AND(YEAR(SepMin1+9)=TahunKalender,MONTH(SepMin1+9)=9),SepMin1+9,\"\"),IF(AND(YEAR(SepMin1+16)=TahunKalender,MONTH(SepMin1+16)=9),SepMin1+16,\"\"))","v":"2019-09-10"},{"$f":"IF(DAY(SepMin1)=1,IF(AND(YEAR(SepMin1+10)=TahunKalender,MONTH(SepMin1+10)=9),SepMin1+10,\"\"),IF(AND(YEAR(SepMin1+17)=TahunKalender,MONTH(SepMin1+17)=9),SepMin1+17,\"\"))","v":"2019-09-11"},{"$f":"IF(DAY(SepMin1)=1,IF(AND(YEAR(SepMin1+11)=TahunKalender,MONTH(SepMin1+11)=9),SepMin1+11,\"\"),IF(AND(YEAR(SepMin1+18)=TahunKalender,MONTH(SepMin1+18)=9),SepMin1+18,\"\"))","v":"2019-09-12"},{"$f":"IF(DAY(SepMin1)=1,IF(AND(YEAR(SepMin1+12)=TahunKalender,MONTH(SepMin1+12)=9),SepMin1+12,\"\"),IF(AND(YEAR(SepMin1+19)=TahunKalender,MONTH(SepMin1+19)=9),SepMin1+19,\"\"))","v":"2019-09-13"},{"$f":"IF(DAY(SepMin1)=1,IF(AND(YEAR(SepMin1+13)=TahunKalender,MONTH(SepMin1+13)=9),SepMin1+13,\"\"),IF(AND(YEAR(SepMin1+20)=TahunKalender,MONTH(SepMin1+20)=9),SepMin1+20,\"\"))","v":"2019-09-14"},{"$f":"IF(DAY(SepMin1)=1,IF(AND(YEAR(SepMin1+14)=TahunKalender,MONTH(SepMin1+14)=9),SepMin1+14,\"\"),IF(AND(YEAR(SepMin1+21)=TahunKalender,MONTH(SepMin1+21)=9),SepMin1+21,\"\"))","v":"2019-09-15"},null,null,{"$f":"IF(DAY(OktMin1)=1,IF(AND(YEAR(OktMin1+8)=TahunKalender,MONTH(OktMin1+8)=10),OktMin1+8,\"\"),IF(AND(YEAR(OktMin1+15)=TahunKalender,MONTH(OktMin1+15)=10),OktMin1+15,\"\"))","v":"2019-10-14"},{"$f":"IF(DAY(OktMin1)=1,IF(AND(YEAR(OktMin1+9)=TahunKalender,MONTH(OktMin1+9)=10),OktMin1+9,\"\"),IF(AND(YEAR(OktMin1+16)=TahunKalender,MONTH(OktMin1+16)=10),OktMin1+16,\"\"))","v":"2019-10-15"},{"$f":"IF(DAY(OktMin1)=1,IF(AND(YEAR(OktMin1+10)=TahunKalender,MONTH(OktMin1+10)=10),OktMin1+10,\"\"),IF(AND(YEAR(OktMin1+17)=TahunKalender,MONTH(OktMin1+17)=10),OktMin1+17,\"\"))","v":"2019-10-16"},{"$f":"IF(DAY(OktMin1)=1,IF(AND(YEAR(OktMin1+11)=TahunKalender,MONTH(OktMin1+11)=10),OktMin1+11,\"\"),IF(AND(YEAR(OktMin1+18)=TahunKalender,MONTH(OktMin1+18)=10),OktMin1+18,\"\"))","v":"2019-10-17"},{"$f":"IF(DAY(OktMin1)=1,IF(AND(YEAR(OktMin1+12)=TahunKalender,MONTH(OktMin1+12)=10),OktMin1+12,\"\"),IF(AND(YEAR(OktMin1+19)=TahunKalender,MONTH(OktMin1+19)=10),OktMin1+19,\"\"))","v":"2019-10-18"},{"$f":"IF(DAY(OktMin1)=1,IF(AND(YEAR(OktMin1+13)=TahunKalender,MONTH(OktMin1+13)=10),OktMin1+13,\"\"),IF(AND(YEAR(OktMin1+20)=TahunKalender,MONTH(OktMin1+20)=10),OktMin1+20,\"\"))","v":"2019-10-19"},{"$f":"IF(DAY(OktMin1)=1,IF(AND(YEAR(OktMin1+14)=TahunKalender,MONTH(OktMin1+14)=10),OktMin1+14,\"\"),IF(AND(YEAR(OktMin1+21)=TahunKalender,MONTH(OktMin1+21)=10),OktMin1+21,\"\"))","v":"2019-10-20"},null,null,{"$f":"IF(DAY(NovMin1)=1,IF(AND(YEAR(NovMin1+8)=TahunKalender,MONTH(NovMin1+8)=11),NovMin1+8,\"\"),IF(AND(YEAR(NovMin1+15)=TahunKalender,MONTH(NovMin1+15)=11),NovMin1+15,\"\"))","v":"2019-11-11"},{"$f":"IF(DAY(NovMin1)=1,IF(AND(YEAR(NovMin1+9)=TahunKalender,MONTH(NovMin1+9)=11),NovMin1+9,\"\"),IF(AND(YEAR(NovMin1+16)=TahunKalender,MONTH(NovMin1+16)=11),NovMin1+16,\"\"))","v":"2019-11-12"},{"$f":"IF(DAY(NovMin1)=1,IF(AND(YEAR(NovMin1+10)=TahunKalender,MONTH(NovMin1+10)=11),NovMin1+10,\"\"),IF(AND(YEAR(NovMin1+17)=TahunKalender,MONTH(NovMin1+17)=11),NovMin1+17,\"\"))","v":"2019-11-13"},{"$f":"IF(DAY(NovMin1)=1,IF(AND(YEAR(NovMin1+11)=TahunKalender,MONTH(NovMin1+11)=11),NovMin1+11,\"\"),IF(AND(YEAR(NovMin1+18)=TahunKalender,MONTH(NovMin1+18)=11),NovMin1+18,\"\"))","v":"2019-11-14"},{"$f":"IF(DAY(NovMin1)=1,IF(AND(YEAR(NovMin1+12)=TahunKalender,MONTH(NovMin1+12)=11),NovMin1+12,\"\"),IF(AND(YEAR(NovMin1+19)=TahunKalender,MONTH(NovMin1+19)=11),NovMin1+19,\"\"))","v":"2019-11-15"},{"$f":"IF(DAY(NovMin1)=1,IF(AND(YEAR(NovMin1+13)=TahunKalender,MONTH(NovMin1+13)=11),NovMin1+13,\"\"),IF(AND(YEAR(NovMin1+20)=TahunKalender,MONTH(NovMin1+20)=11),NovMin1+20,\"\"))","v":"2019-11-16"},{"$f":"IF(DAY(NovMin1)=1,IF(AND(YEAR(NovMin1+14)=TahunKalender,MONTH(NovMin1+14)=11),NovMin1+14,\"\"),IF(AND(YEAR(NovMin1+21)=TahunKalender,MONTH(NovMin1+21)=11),NovMin1+21,\"\"))","v":"2019-11-17"},null,null,{"$f":"IF(DAY(DesMin1)=1,IF(AND(YEAR(DesMin1+8)=TahunKalender,MONTH(DesMin1+8)=12),DesMin1+8,\"\"),IF(AND(YEAR(DesMin1+15)=TahunKalender,MONTH(DesMin1+15)=12),DesMin1+15,\"\"))","v":"2019-12-09"},{"$f":"IF(DAY(DesMin1)=1,IF(AND(YEAR(DesMin1+9)=TahunKalender,MONTH(DesMin1+9)=12),DesMin1+9,\"\"),IF(AND(YEAR(DesMin1+16)=TahunKalender,MONTH(DesMin1+16)=12),DesMin1+16,\"\"))","v":"2019-12-10"},{"$f":"IF(DAY(DesMin1)=1,IF(AND(YEAR(DesMin1+10)=TahunKalender,MONTH(DesMin1+10)=12),DesMin1+10,\"\"),IF(AND(YEAR(DesMin1+17)=TahunKalender,MONTH(DesMin1+17)=12),DesMin1+17,\"\"))","v":"2019-12-11"},{"$f":"IF(DAY(DesMin1)=1,IF(AND(YEAR(DesMin1+11)=TahunKalender,MONTH(DesMin1+11)=12),DesMin1+11,\"\"),IF(AND(YEAR(DesMin1+18)=TahunKalender,MONTH(DesMin1+18)=12),DesMin1+18,\"\"))","v":"2019-12-12"},{"$f":"IF(DAY(DesMin1)=1,IF(AND(YEAR(DesMin1+12)=TahunKalender,MONTH(DesMin1+12)=12),DesMin1+12,\"\"),IF(AND(YEAR(DesMin1+19)=TahunKalender,MONTH(DesMin1+19)=12),DesMin1+19,\"\"))","v":"2019-12-13"},{"$f":"IF(DAY(DesMin1)=1,IF(AND(YEAR(DesMin1+13)=TahunKalender,MONTH(DesMin1+13)=12),DesMin1+13,\"\"),IF(AND(YEAR(DesMin1+20)=TahunKalender,MONTH(DesMin1+20)=12),DesMin1+20,\"\"))","v":"2019-12-14"},{"$f":"IF(DAY(DesMin1)=1,IF(AND(YEAR(DesMin1+14)=TahunKalender,MONTH(DesMin1+14)=12),DesMin1+14,\"\"),IF(AND(YEAR(DesMin1+21)=TahunKalender,MONTH(DesMin1+21)=12),DesMin1+21,\"\"))","v":"2019-12-15"}]
[null,null,{"$f":"IF(DAY(SepMin1)=1,IF(AND(YEAR(SepMin1+15)=TahunKalender,MONTH(SepMin1+15)=9),SepMin1+15,\"\"),IF(AND(YEAR(SepMin1+22)=TahunKalender,MONTH(SepMin1+22)=9),SepMin1+22,\"\"))","v":"2019-09-16"},{"$f":"IF(DAY(SepMin1)=1,IF(AND(YEAR(SepMin1+16)=TahunKalender,MONTH(SepMin1+16)=9),SepMin1+16,\"\"),IF(AND(YEAR(SepMin1+23)=TahunKalender,MONTH(SepMin1+23)=9),SepMin1+23,\"\"))","v":"2019-09-17"},{"$f":"IF(DAY(SepMin1)=1,IF(AND(YEAR(SepMin1+17)=TahunKalender,MONTH(SepMin1+17)=9),SepMin1+17,\"\"),IF(AND(YEAR(SepMin1+24)=TahunKalender,MONTH(SepMin1+24)=9),SepMin1+24,\"\"))","v":"2019-09-18"},{"$f":"IF(DAY(SepMin1)=1,IF(AND(YEAR(SepMin1+18)=TahunKalender,MONTH(SepMin1+18)=9),SepMin1+18,\"\"),IF(AND(YEAR(SepMin1+25)=TahunKalender,MONTH(SepMin1+25)=9),SepMin1+25,\"\"))","v":"2019-09-19"},{"$f":"IF(DAY(SepMin1)=1,IF(AND(YEAR(SepMin1+19)=TahunKalender,MONTH(SepMin1+19)=9),SepMin1+19,\"\"),IF(AND(YEAR(SepMin1+26)=TahunKalender,MONTH(SepMin1+26)=9),SepMin1+26,\"\"))","v":"2019-09-20"},{"$f":"IF(DAY(SepMin1)=1,IF(AND(YEAR(SepMin1+20)=TahunKalender,MONTH(SepMin1+20)=9),SepMin1+20,\"\"),IF(AND(YEAR(SepMin1+27)=TahunKalender,MONTH(SepMin1+27)=9),SepMin1+27,\"\"))","v":"2019-09-21"},{"$f":"IF(DAY(SepMin1)=1,IF(AND(YEAR(SepMin1+21)=TahunKalender,MONTH(SepMin1+21)=9),SepMin1+21,\"\"),IF(AND(YEAR(SepMin1+28)=TahunKalender,MONTH(SepMin1+28)=9),SepMin1+28,\"\"))","v":"2019-09-22"},null,null,{"$f":"IF(DAY(OktMin1)=1,IF(AND(YEAR(OktMin1+15)=TahunKalender,MONTH(OktMin1+15)=10),OktMin1+15,\"\"),IF(AND(YEAR(OktMin1+22)=TahunKalender,MONTH(OktMin1+22)=10),OktMin1+22,\"\"))","v":"2019-10-21"},{"$f":"IF(DAY(OktMin1)=1,IF(AND(YEAR(OktMin1+16)=TahunKalender,MONTH(OktMin1+16)=10),OktMin1+16,\"\"),IF(AND(YEAR(OktMin1+23)=TahunKalender,MONTH(OktMin1+23)=10),OktMin1+23,\"\"))","v":"2019-10-22"},{"$f":"IF(DAY(OktMin1)=1,IF(AND(YEAR(OktMin1+17)=TahunKalender,MONTH(OktMin1+17)=10),OktMin1+17,\"\"),IF(AND(YEAR(OktMin1+24)=TahunKalender,MONTH(OktMin1+24)=10),OktMin1+24,\"\"))","v":"2019-10-23"},{"$f":"IF(DAY(OktMin1)=1,IF(AND(YEAR(OktMin1+18)=TahunKalender,MONTH(OktMin1+18)=10),OktMin1+18,\"\"),IF(AND(YEAR(OktMin1+25)=TahunKalender,MONTH(OktMin1+25)=10),OktMin1+25,\"\"))","v":"2019-10-24"},{"$f":"IF(DAY(OktMin1)=1,IF(AND(YEAR(OktMin1+19)=TahunKalender,MONTH(OktMin1+19)=10),OktMin1+19,\"\"),IF(AND(YEAR(OktMin1+26)=TahunKalender,MONTH(OktMin1+26)=10),OktMin1+26,\"\"))","v":"2019-10-25"},{"$f":"IF(DAY(OktMin1)=1,IF(AND(YEAR(OktMin1+20)=TahunKalender,MONTH(OktMin1+20)=10),OktMin1+20,\"\"),IF(AND(YEAR(OktMin1+27)=TahunKalender,MONTH(OktMin1+27)=10),OktMin1+27,\"\"))","v":"2019-10-26"},{"$f":"IF(DAY(OktMin1)=1,IF(AND(YEAR(OktMin1+21)=TahunKalender,MONTH(OktMin1+21)=10),OktMin1+21,\"\"),IF(AND(YEAR(OktMin1+28)=TahunKalender,MONTH(OktMin1+28)=10),OktMin1+28,\"\"))","v":"2019-10-27"},null,null,{"$f":"IF(DAY(NovMin1)=1,IF(AND(YEAR(NovMin1+15)=TahunKalender,MONTH(NovMin1+15)=11),NovMin1+15,\"\"),IF(AND(YEAR(NovMin1+22)=TahunKalender,MONTH(NovMin1+22)=11),NovMin1+22,\"\"))","v":"2019-11-18"},{"$f":"IF(DAY(NovMin1)=1,IF(AND(YEAR(NovMin1+16)=TahunKalender,MONTH(NovMin1+16)=11),NovMin1+16,\"\"),IF(AND(YEAR(NovMin1+23)=TahunKalender,MONTH(NovMin1+23)=11),NovMin1+23,\"\"))","v":"2019-11-19"},{"$f":"IF(DAY(NovMin1)=1,IF(AND(YEAR(NovMin1+17)=TahunKalender,MONTH(NovMin1+17)=11),NovMin1+17,\"\"),IF(AND(YEAR(NovMin1+24)=TahunKalender,MONTH(NovMin1+24)=11),NovMin1+24,\"\"))","v":"2019-11-20"},{"$f":"IF(DAY(NovMin1)=1,IF(AND(YEAR(NovMin1+18)=TahunKalender,MONTH(NovMin1+18)=11),NovMin1+18,\"\"),IF(AND(YEAR(NovMin1+25)=TahunKalender,MONTH(NovMin1+25)=11),NovMin1+25,\"\"))","v":"2019-11-21"},{"$f":"IF(DAY(NovMin1)=1,IF(AND(YEAR(NovMin1+19)=TahunKalender,MONTH(NovMin1+19)=11),NovMin1+19,\"\"),IF(AND(YEAR(NovMin1+26)=TahunKalender,MONTH(NovMin1+26)=11),NovMin1+26,\"\"))","v":"2019-11-22"},{"$f":"IF(DAY(NovMin1)=1,IF(AND(YEAR(NovMin1+20)=TahunKalender,MONTH(NovMin1+20)=11),NovMin1+20,\"\"),IF(AND(YEAR(NovMin1+27)=TahunKalender,MONTH(NovMin1+27)=11),NovMin1+27,\"\"))","v":"2019-11-23"},{"$f":"IF(DAY(NovMin1)=1,IF(AND(YEAR(NovMin1+21)=TahunKalender,MONTH(NovMin1+21)=11),NovMin1+21,\"\"),IF(AND(YEAR(NovMin1+28)=TahunKalender,MONTH(NovMin1+28)=11),NovMin1+28,\"\"))","v":"2019-11-24"},null,null,{"$f":"IF(DAY(DesMin1)=1,IF(AND(YEAR(DesMin1+15)=TahunKalender,MONTH(DesMin1+15)=12),DesMin1+15,\"\"),IF(AND(YEAR(DesMin1+22)=TahunKalender,MONTH(DesMin1+22)=12),DesMin1+22,\"\"))","v":"2019-12-16"},{"$f":"IF(DAY(DesMin1)=1,IF(AND(YEAR(DesMin1+16)=TahunKalender,MONTH(DesMin1+16)=12),DesMin1+16,\"\"),IF(AND(YEAR(DesMin1+23)=TahunKalender,MONTH(DesMin1+23)=12),DesMin1+23,\"\"))","v":"2019-12-17"},{"$f":"IF(DAY(DesMin1)=1,IF(AND(YEAR(DesMin1+17)=TahunKalender,MONTH(DesMin1+17)=12),DesMin1+17,\"\"),IF(AND(YEAR(DesMin1+24)=TahunKalender,MONTH(DesMin1+24)=12),DesMin1+24,\"\"))","v":"2019-12-18"},{"$f":"IF(DAY(DesMin1)=1,IF(AND(YEAR(DesMin1+18)=TahunKalender,MONTH(DesMin1+18)=12),DesMin1+18,\"\"),IF(AND(YEAR(DesMin1+25)=TahunKalender,MONTH(DesMin1+25)=12),DesMin1+25,\"\"))","v":"2019-12-19"},{"$f":"IF(DAY(DesMin1)=1,IF(AND(YEAR(DesMin1+19)=TahunKalender,MONTH(DesMin1+19)=12),DesMin1+19,\"\"),IF(AND(YEAR(DesMin1+26)=TahunKalender,MONTH(DesMin1+26)=12),DesMin1+26,\"\"))","v":"2019-12-20"},{"$f":"IF(DAY(DesMin1)=1,IF(AND(YEAR(DesMin1+20)=TahunKalender,MONTH(DesMin1+20)=12),DesMin1+20,\"\"),IF(AND(YEAR(DesMin1+27)=TahunKalender,MONTH(DesMin1+27)=12),DesMin1+27,\"\"))","v":"2019-12-21"},{"$f":"IF(DAY(DesMin1)=1,IF(AND(YEAR(DesMin1+21)=TahunKalender,MONTH(DesMin1+21)=12),DesMin1+21,\"\"),IF(AND(YEAR(DesMin1+28)=TahunKalender,MONTH(DesMin1+28)=12),DesMin1+28,\"\"))","v":"2019-12-22"}]
[null,null,{"$f":"IF(DAY(SepMin1)=1,IF(AND(YEAR(SepMin1+22)=TahunKalender,MONTH(SepMin1+22)=9),SepMin1+22,\"\"),IF(AND(YEAR(SepMin1+29)=TahunKalender,MONTH(SepMin1+29)=9),SepMin1+29,\"\"))","v":"2019-09-23"},{"$f":"IF(DAY(SepMin1)=1,IF(AND(YEAR(SepMin1+23)=TahunKalender,MONTH(SepMin1+23)=9),SepMin1+23,\"\"),IF(AND(YEAR(SepMin1+30)=TahunKalender,MONTH(SepMin1+30)=9),SepMin1+30,\"\"))","v":"2019-09-24"},{"$f":"IF(DAY(SepMin1)=1,IF(AND(YEAR(SepMin1+24)=TahunKalender,MONTH(SepMin1+24)=9),SepMin1+24,\"\"),IF(AND(YEAR(SepMin1+31)=TahunKalender,MONTH(SepMin1+31)=9),SepMin1+31,\"\"))","v":"2019-09-25"},{"$f":"IF(DAY(SepMin1)=1,IF(AND(YEAR(SepMin1+25)=TahunKalender,MONTH(SepMin1+25)=9),SepMin1+25,\"\"),IF(AND(YEAR(SepMin1+32)=TahunKalender,MONTH(SepMin1+32)=9),SepMin1+32,\"\"))","v":"2019-09-26"},{"$f":"IF(DAY(SepMin1)=1,IF(AND(YEAR(SepMin1+26)=TahunKalender,MONTH(SepMin1+26)=9),SepMin1+26,\"\"),IF(AND(YEAR(SepMin1+33)=TahunKalender,MONTH(SepMin1+33)=9),SepMin1+33,\"\"))","v":"2019-09-27"},{"$f":"IF(DAY(SepMin1)=1,IF(AND(YEAR(SepMin1+27)=TahunKalender,MONTH(SepMin1+27)=9),SepMin1+27,\"\"),IF(AND(YEAR(SepMin1+34)=TahunKalender,MONTH(SepMin1+34)=9),SepMin1+34,\"\"))","v":"2019-09-28"},{"$f":"IF(DAY(SepMin1)=1,IF(AND(YEAR(SepMin1+28)=TahunKalender,MONTH(SepMin1+28)=9),SepMin1+28,\"\"),IF(AND(YEAR(SepMin1+35)=TahunKalender,MONTH(SepMin1+35)=9),SepMin1+35,\"\"))","v":"2019-09-29"},null,null,{"$f":"IF(DAY(OktMin1)=1,IF(AND(YEAR(OktMin1+22)=TahunKalender,MONTH(OktMin1+22)=10),OktMin1+22,\"\"),IF(AND(YEAR(OktMin1+29)=TahunKalender,MONTH(OktMin1+29)=10),OktMin1+29,\"\"))","v":"2019-10-28"},{"$f":"IF(DAY(OktMin1)=1,IF(AND(YEAR(OktMin1+23)=TahunKalender,MONTH(OktMin1+23)=10),OktMin1+23,\"\"),IF(AND(YEAR(OktMin1+30)=TahunKalender,MONTH(OktMin1+30)=10),OktMin1+30,\"\"))","v":"2019-10-29"},{"$f":"IF(DAY(OktMin1)=1,IF(AND(YEAR(OktMin1+24)=TahunKalender,MONTH(OktMin1+24)=10),OktMin1+24,\"\"),IF(AND(YEAR(OktMin1+31)=TahunKalender,MONTH(OktMin1+31)=10),OktMin1+31,\"\"))","v":"2019-10-30"},{"$f":"IF(DAY(OktMin1)=1,IF(AND(YEAR(OktMin1+25)=TahunKalender,MONTH(OktMin1+25)=10),OktMin1+25,\"\"),IF(AND(YEAR(OktMin1+32)=TahunKalender,MONTH(OktMin1+32)=10),OktMin1+32,\"\"))","v":"2019-10-31"},{"$f":"IF(DAY(OktMin1)=1,IF(AND(YEAR(OktMin1+26)=TahunKalender,MONTH(OktMin1+26)=10),OktMin1+26,\"\"),IF(AND(YEAR(OktMin1+33)=TahunKalender,MONTH(OktMin1+33)=10),OktMin1+33,\"\"))","v":""},{"$f":"IF(DAY(OktMin1)=1,IF(AND(YEAR(OktMin1+27)=TahunKalender,MONTH(OktMin1+27)=10),OktMin1+27,\"\"),IF(AND(YEAR(OktMin1+34)=TahunKalender,MONTH(OktMin1+34)=10),OktMin1+34,\"\"))","v":""},{"$f":"IF(DAY(OktMin1)=1,IF(AND(YEAR(OktMin1+28)=TahunKalender,MONTH(OktMin1+28)=10),OktMin1+28,\"\"),IF(AND(YEAR(OktMin1+35)=TahunKalender,MONTH(OktMin1+35)=10),OktMin1+35,\"\"))","v":""},null,null,{"$f":"IF(DAY(NovMin1)=1,IF(AND(YEAR(NovMin1+22)=TahunKalender,MONTH(NovMin1+22)=11),NovMin1+22,\"\"),IF(AND(YEAR(NovMin1+29)=TahunKalender,MONTH(NovMin1+29)=11),NovMin1+29,\"\"))","v":"2019-11-25"},{"$f":"IF(DAY(NovMin1)=1,IF(AND(YEAR(NovMin1+23)=TahunKalender,MONTH(NovMin1+23)=11),NovMin1+23,\"\"),IF(AND(YEAR(NovMin1+30)=TahunKalender,MONTH(NovMin1+30)=11),NovMin1+30,\"\"))","v":"2019-11-26"},{"$f":"IF(DAY(NovMin1)=1,IF(AND(YEAR(NovMin1+24)=TahunKalender,MONTH(NovMin1+24)=11),NovMin1+24,\"\"),IF(AND(YEAR(NovMin1+31)=TahunKalender,MONTH(NovMin1+31)=11),NovMin1+31,\"\"))","v":"2019-11-27"},{"$f":"IF(DAY(NovMin1)=1,IF(AND(YEAR(NovMin1+25)=TahunKalender,MONTH(NovMin1+25)=11),NovMin1+25,\"\"),IF(AND(YEAR(NovMin1+32)=TahunKalender,MONTH(NovMin1+32)=11),NovMin1+32,\"\"))","v":"2019-11-28"},{"$f":"IF(DAY(NovMin1)=1,IF(AND(YEAR(NovMin1+26)=TahunKalender,MONTH(NovMin1+26)=11),NovMin1+26,\"\"),IF(AND(YEAR(NovMin1+33)=TahunKalender,MONTH(NovMin1+33)=11),NovMin1+33,\"\"))","v":"2019-11-29"},{"$f":"IF(DAY(NovMin1)=1,IF(AND(YEAR(NovMin1+27)=TahunKalender,MONTH(NovMin1+27)=11),NovMin1+27,\"\"),IF(AND(YEAR(NovMin1+34)=TahunKalender,MONTH(NovMin1+34)=11),NovMin1+34,\"\"))","v":"2019-11-30"},{"$f":"IF(DAY(NovMin1)=1,IF(AND(YEAR(NovMin1+28)=TahunKalender,MONTH(NovMin1+28)=11),NovMin1+28,\"\"),IF(AND(YEAR(NovMin1+35)=TahunKalender,MONTH(NovMin1+35)=11),NovMin1+35,\"\"))","v":""},null,null,{"$f":"IF(DAY(DesMin1)=1,IF(AND(YEAR(DesMin1+22)=TahunKalender,MONTH(DesMin1+22)=12),DesMin1+22,\"\"),IF(AND(YEAR(DesMin1+29)=TahunKalender,MONTH(DesMin1+29)=12),DesMin1+29,\"\"))","v":"2019-12-23"},{"$f":"IF(DAY(DesMin1)=1,IF(AND(YEAR(DesMin1+23)=TahunKalender,MONTH(DesMin1+23)=12),DesMin1+23,\"\"),IF(AND(YEAR(DesMin1+30)=TahunKalender,MONTH(DesMin1+30)=12),DesMin1+30,\"\"))","v":"2019-12-24"},{"$f":"IF(DAY(DesMin1)=1,IF(AND(YEAR(DesMin1+24)=TahunKalender,MONTH(DesMin1+24)=12),DesMin1+24,\"\"),IF(AND(YEAR(DesMin1+31)=TahunKalender,MONTH(DesMin1+31)=12),DesMin1+31,\"\"))","v":"2019-12-25"},{"$f":"IF(DAY(DesMin1)=1,IF(AND(YEAR(DesMin1+25)=TahunKalender,MONTH(DesMin1+25)=12),DesMin1+25,\"\"),IF(AND(YEAR(DesMin1+32)=TahunKalender,MONTH(DesMin1+32)=12),DesMin1+32,\"\"))","v":"2019-12-26"},{"$f":"IF(DAY(DesMin1)=1,IF(AND(YEAR(DesMin1+26)=TahunKalender,MONTH(DesMin1+26)=12),DesMin1+26,\"\"),IF(AND(YEAR(DesMin1+33)=TahunKalender,MONTH(DesMin1+33)=12),DesMin1+33,\"\"))","v":"2019-12-27"},{"$f":"IF(DAY(DesMin1)=1,IF(AND(YEAR(DesMin1+27)=TahunKalender,MONTH(DesMin1+27)=12),DesMin1+27,\"\"),IF(AND(YEAR(DesMin1+34)=TahunKalender,MONTH(DesMin1+34)=12),DesMin1+34,\"\"))","v":"2019-12-28"},{"$f":"IF(DAY(DesMin1)=1,IF(AND(YEAR(DesMin1+28)=TahunKalender,MONTH(DesMin1+28)=12),DesMin1+28,\"\"),IF(AND(YEAR(DesMin1+35)=TahunKalender,MONTH(DesMin1+35)=12),DesMin1+35,\"\"))","v":"2019-12-29"}]
[null,null,{"$f":"IF(DAY(SepMin1)=1,IF(AND(YEAR(SepMin1+29)=TahunKalender,MONTH(SepMin1+29)=9),SepMin1+29,\"\"),IF(AND(YEAR(SepMin1+36)=TahunKalender,MONTH(SepMin1+36)=9),SepMin1+36,\"\"))","v":"2019-09-30"},{"$f":"IF(DAY(SepMin1)=1,IF(AND(YEAR(SepMin1+30)=TahunKalender,MONTH(SepMin1+30)=9),SepMin1+30,\"\"),IF(AND(YEAR(SepMin1+37)=TahunKalender,MONTH(SepMin1+37)=9),SepMin1+37,\"\"))","v":""},{"$f":"IF(DAY(SepMin1)=1,IF(AND(YEAR(SepMin1+31)=TahunKalender,MONTH(SepMin1+31)=9),SepMin1+31,\"\"),IF(AND(YEAR(SepMin1+38)=TahunKalender,MONTH(SepMin1+38)=9),SepMin1+38,\"\"))","v":""},{"$f":"IF(DAY(SepMin1)=1,IF(AND(YEAR(SepMin1+32)=TahunKalender,MONTH(SepMin1+32)=9),SepMin1+32,\"\"),IF(AND(YEAR(SepMin1+39)=TahunKalender,MONTH(SepMin1+39)=9),SepMin1+39,\"\"))","v":""},{"$f":"IF(DAY(SepMin1)=1,IF(AND(YEAR(SepMin1+33)=TahunKalender,MONTH(SepMin1+33)=9),SepMin1+33,\"\"),IF(AND(YEAR(SepMin1+40)=TahunKalender,MONTH(SepMin1+40)=9),SepMin1+40,\"\"))","v":""},{"$f":"IF(DAY(SepMin1)=1,IF(AND(YEAR(SepMin1+34)=TahunKalender,MONTH(SepMin1+34)=9),SepMin1+34,\"\"),IF(AND(YEAR(SepMin1+41)=TahunKalender,MONTH(SepMin1+41)=9),SepMin1+41,\"\"))","v":""},{"$f":"IF(DAY(SepMin1)=1,IF(AND(YEAR(SepMin1+35)=TahunKalender,MONTH(SepMin1+35)=9),SepMin1+35,\"\"),IF(AND(YEAR(SepMin1+42)=TahunKalender,MONTH(SepMin1+42)=9),SepMin1+42,\"\"))","v":""},null,null,{"$f":"IF(DAY(OktMin1)=1,IF(AND(YEAR(OktMin1+29)=TahunKalender,MONTH(OktMin1+29)=10),OktMin1+29,\"\"),IF(AND(YEAR(OktMin1+36)=TahunKalender,MONTH(OktMin1+36)=10),OktMin1+36,\"\"))","v":""},{"$f":"IF(DAY(OktMin1)=1,IF(AND(YEAR(OktMin1+30)=TahunKalender,MONTH(OktMin1+30)=10),OktMin1+30,\"\"),IF(AND(YEAR(OktMin1+37)=TahunKalender,MONTH(OktMin1+37)=10),OktMin1+37,\"\"))","v":""},{"$f":"IF(DAY(OktMin1)=1,IF(AND(YEAR(OktMin1+31)=TahunKalender,MONTH(OktMin1+31)=10),OktMin1+31,\"\"),IF(AND(YEAR(OktMin1+38)=TahunKalender,MONTH(OktMin1+38)=10),OktMin1+38,\"\"))","v":""},{"$f":"IF(DAY(OktMin1)=1,IF(AND(YEAR(OktMin1+32)=TahunKalender,MONTH(OktMin1+32)=10),OktMin1+32,\"\"),IF(AND(YEAR(OktMin1+39)=TahunKalender,MONTH(OktMin1+39)=10),OktMin1+39,\"\"))","v":""},{"$f":"IF(DAY(OktMin1)=1,IF(AND(YEAR(OktMin1+33)=TahunKalender,MONTH(OktMin1+33)=10),OktMin1+33,\"\"),IF(AND(YEAR(OktMin1+40)=TahunKalender,MONTH(OktMin1+40)=10),OktMin1+40,\"\"))","v":""},{"$f":"IF(DAY(OktMin1)=1,IF(AND(YEAR(OktMin1+34)=TahunKalender,MONTH(OktMin1+34)=10),OktMin1+34,\"\"),IF(AND(YEAR(OktMin1+41)=TahunKalender,MONTH(OktMin1+41)=10),OktMin1+41,\"\"))","v":""},{"$f":"IF(DAY(OktMin1)=1,IF(AND(YEAR(OktMin1+35)=TahunKalender,MONTH(OktMin1+35)=10),OktMin1+35,\"\"),IF(AND(YEAR(OktMin1+42)=TahunKalender,MONTH(OktMin1+42)=10),OktMin1+42,\"\"))","v":""},null,null,{"$f":"IF(DAY(NovMin1)=1,IF(AND(YEAR(NovMin1+29)=TahunKalender,MONTH(NovMin1+29)=11),NovMin1+29,\"\"),IF(AND(YEAR(NovMin1+36)=TahunKalender,MONTH(NovMin1+36)=11),NovMin1+36,\"\"))","v":""},{"$f":"IF(DAY(NovMin1)=1,IF(AND(YEAR(NovMin1+30)=TahunKalender,MONTH(NovMin1+30)=11),NovMin1+30,\"\"),IF(AND(YEAR(NovMin1+37)=TahunKalender,MONTH(NovMin1+37)=11),NovMin1+37,\"\"))","v":""},{"$f":"IF(DAY(NovMin1)=1,IF(AND(YEAR(NovMin1+31)=TahunKalender,MONTH(NovMin1+31)=11),NovMin1+31,\"\"),IF(AND(YEAR(NovMin1+38)=TahunKalender,MONTH(NovMin1+38)=11),NovMin1+38,\"\"))","v":""},{"$f":"IF(DAY(NovMin1)=1,IF(AND(YEAR(NovMin1+32)=TahunKalender,MONTH(NovMin1+32)=11),NovMin1+32,\"\"),IF(AND(YEAR(NovMin1+39)=TahunKalender,MONTH(NovMin1+39)=11),NovMin1+39,\"\"))","v":""},{"$f":"IF(DAY(NovMin1)=1,IF(AND(YEAR(NovMin1+33)=TahunKalender,MONTH(NovMin1+33)=11),NovMin1+33,\"\"),IF(AND(YEAR(NovMin1+40)=TahunKalender,MONTH(NovMin1+40)=11),NovMin1+40,\"\"))","v":""},{"$f":"IF(DAY(NovMin1)=1,IF(AND(YEAR(NovMin1+34)=TahunKalender,MONTH(NovMin1+34)=11),NovMin1+34,\"\"),IF(AND(YEAR(NovMin1+41)=TahunKalender,MONTH(NovMin1+41)=11),NovMin1+41,\"\"))","v":""},{"$f":"IF(DAY(NovMin1)=1,IF(AND(YEAR(NovMin1+35)=TahunKalender,MONTH(NovMin1+35)=11),NovMin1+35,\"\"),IF(AND(YEAR(NovMin1+42)=TahunKalender,MONTH(NovMin1+42)=11),NovMin1+42,\"\"))","v":""},null,null,{"$f":"IF(DAY(DesMin1)=1,IF(AND(YEAR(DesMin1+29)=TahunKalender,MONTH(DesMin1+29)=12),DesMin1+29,\"\"),IF(AND(YEAR(DesMin1+36)=TahunKalender,MONTH(DesMin1+36)=12),DesMin1+36,\"\"))","v":"2019-12-30"},{"$f":"IF(DAY(DesMin1)=1,IF(AND(YEAR(DesMin1+30)=TahunKalender,MONTH(DesMin1+30)=12),DesMin1+30,\"\"),IF(AND(YEAR(DesMin1+37)=TahunKalender,MONTH(DesMin1+37)=12),DesMin1+37,\"\"))","v":"2019-12-31"},{"$f":"IF(DAY(DesMin1)=1,IF(AND(YEAR(DesMin1+31)=TahunKalender,MONTH(DesMin1+31)=12),DesMin1+31,\"\"),IF(AND(YEAR(DesMin1+38)=TahunKalender,MONTH(DesMin1+38)=12),DesMin1+38,\"\"))","v":""},{"$f":"IF(DAY(DesMin1)=1,IF(AND(YEAR(DesMin1+32)=TahunKalender,MONTH(DesMin1+32)=12),DesMin1+32,\"\"),IF(AND(YEAR(DesMin1+39)=TahunKalender,MONTH(DesMin1+39)=12),DesMin1+39,\"\"))","v":""},{"$f":"IF(DAY(DesMin1)=1,IF(AND(YEAR(DesMin1+33)=TahunKalender,MONTH(DesMin1+33)=12),DesMin1+33,\"\"),IF(AND(YEAR(DesMin1+40)=TahunKalender,MONTH(DesMin1+40)=12),DesMin1+40,\"\"))","v":""},{"$f":"IF(DAY(DesMin1)=1,IF(AND(YEAR(DesMin1+34)=TahunKalender,MONTH(DesMin1+34)=12),DesMin1+34,\"\"),IF(AND(YEAR(DesMin1+41)=TahunKalender,MONTH(DesMin1+41)=12),DesMin1+41,\"\"))","v":""},{"$f":"IF(DAY(DesMin1)=1,IF(AND(YEAR(DesMin1+35)=TahunKalender,MONTH(DesMin1+35)=12),DesMin1+35,\"\"),IF(AND(YEAR(DesMin1+42)=TahunKalender,MONTH(DesMin1+42)=12),DesMin1+42,\"\"))","v":""}]